Workbook

Sheet T (hidden)
A1: Tipo de vehículo | C1: Pregunta | F1: Adquisicion | H1: Editar
A2: Ibilbide luzeko zama arrunteko ibilgailu artikulatua | B2: T1 | C2: Bai | D2: S | F2: EROSKETA
A3: Ibilbide laburreko zama arrunteko ibilgailu artikulatua | B3: T2 | C3: Ez | D3: N | F3: ALOKAIRUA, LEASING...
A4: Edukiontziak eramateko ibilbide luzeko ibilgailua | B4: T3
A5: Edukiontziak eramateko ibilbide laburreko ibilgailua | B5: T4
A6: Obrako brozel artikulatua | B6: T5
A7: Zama orokorreko ardatz 2ko ibilgailua | B7: T6
A8: Ibilbide luzeko salgai arriskutsuen (kimikoak) ibilgailu artikulatua | B8: T7
A9: Petrolioaren deribatuen (gasolio, gasolina, fuel-olioa) ibilgailu artikulatua | B9: T8
A10: Ibilbide luzeko salgai arriskutsuen (gasak) patin-ibilgailua | B10: T9
A11: Ibilgailu hozkailu artikulatua | B11: T10
A12: Ardatz 2ko ibilgailu hozkailua | B12: T11
A13: Ibilbide luzeko solteko gaien brozela | B13: T12
A14: Ibilbide laburreko solteko gaien brozela | B14: T13
A15: 3T-ko banaketa-kamioi arina | B15: T14
A16: Furgonetak | B16: T15
A17: Ibilgailu arrunta (aurreko kategorietan sartzen ez diren gainerako ibilgailu guztiak) | B17: T16

Sheet DE (hidden)
D1: T1A | E1: T1 | F1: T2A | G1: T2 | H1: T3A | I1: T3 | J1: T4A | K1: T4 | L1: T5A | M1: T5 | N1: T6A | O1: T6 | P1: T7A | Q1: T7 | R1: T8A | S1: T8 | T1: T9A | U1: T9 | V1: T10A | W1: T10 | X1: T11A | Y1: T11 | Z1: T12A | AA1: T12 | AB1: T13A | AC1: T13 | AD1: T14A | AE1: T14 | AF1: T15A | AG1: T15 | AH1: T16A | AI1: T16
B2: Descripción: | E2: Ibilbide luzeko zama arrunteko ibilgailu artikulatua | G2: Ibilbide laburreko zama arrunteko ibilgailu artikulatua | I2: Edukiontziak eramateko ibilbide luzeko ibilgailua | K2: Edukiontziak eramateko ibilbide laburreko ibilgailua | M2: Obrako brozel artikulatua | O2: Zama orokorreko ardatz 2ko ibilgailua | Q2: Ibilbide luzeko salgai arriskutsuen (kimikoak) ibilgailu artikulatua | S2: Petrolioaren deribatuen (gasolio, gasolina, fuel-olioa) ibilgailu artikulatua | U2: Ibilbide luzeko salgai arriskutsuen (gasak) patin-ibilgailua | W2: Ibilgailu hozkailu artikulatua | Y2: Ardatz 2ko ibilgailu hozkailua | AA2: Ibilbide luzeko solteko gaien brozela | AC2: Ibilbide laburreko solteko gaien brozela | AE2: 3T-ko banaketa-kamioi arina | AG2: Furgonetak | AI2: Ibilgailu arrunta (aurreko kategorietan sartzen ez diren gainerako ibilgailu guztiak) | AJ2: 07/04/2026
B3: Tipo interes | E3: 0.0425 | G3: 0.0425 | I3: 0.0425 | K3: 0.0425 | M3: 0.0425 | O3: 0.0425 | Q3: 0.0425 | S3: 0.0425 | U3: 0.0425 | W3: 0.0425 | Y3: 0.0425 | AA3: 0.0425 | AC3: 0.0425 | AE3: 0.0425 | AG3: 0.0425 | AI3: 0.0425
B4: Potencia | E4: 455 | G4: 455 | I4: 455 | K4: 455 | M4: 455 | O4: 280 | Q4: 455 | S4: 455 | U4: 455 | W4: 455 | Y4: 280 | AA4: 455 | AC4: 455 | AE4: 130 | AG4: 130 | AI4: 455
B5: MMA | E5: 40000 | G5: 40000 | I5: 44000 | K5: 44000 | M5: 40000 | O5: 18000 | Q5: 40000 | S5: 40000 | U5: 40000 | W5: 40000 | Y5: 18000 | AA5: 40000 | AC5: 40000 | AE5: 35000 | AG5: 3500 | AI5: 40000
B6: Carga útil | E6: 25000 | G6: 25000 | I6: 26250 | K6: 26250 | M6: 23000 | O6: 9500 | Q6: 0 | S6: 0 | U6: 0 | W6: 24000 | Y6: 9000 | AA6: 24000 | AC6: 24000 | AE6: 1500 | AG6: 1500 | AI6: 25000
B7: Número de ejes | E7: 5 | G7: 5 | I7: 6 | K7: 6 | M7: 4 | O7: 2 | Q7: 5 | S7: 5 | U7: 5 | W7: 5 | Y7: 2 | AA7: 5 | AC7: 5 | AE7: 2 | AG7: 2 | AI7: 5
B8: Número de neumáticos | E8: 12 | G8: 12 | I8: 14 | K8: 14 | M8: 14 | O8: 6 | Q8: 12 | S8: 12 | U8: 12 | W8: 12 | Y8: 6 | AA8: 12 | AC8: 12 | AE8: 4 | AG8: 4 | AI8: 12
B9: Kilómetros recorridos anualmente | E9: 150000 | G9: 120000 | I9: 100000 | K9: 100000 | M9: 60000 | O9: 90000 | Q9: 105000 | S9: 100000 | U9: 100000 | W9: 120000 | Y9: 70000 | AA9: 120000 | AC9: 120000 | AE9: 50000 | AG9: 50000 | AI9: 120000
B10: Kilómetros recorridos anualmente en carga (%, km) | D10: 90 | E10: =E9*D10/100 -> 135000 | F10: 85 | G10: =G9*F10/100 -> 102000 | H10: 85 | I10: =I9*H10/100 -> 85000 | J10: 85 | K10: 85000 | L10: 50 | M10: =M9*L10/100 -> 30000 | N10: 80 | O10: =O9*N10/100 -> 72000 | P10: 75 | Q10: =Q9*P10/100 -> 78750 | R10: 50 | S10: =S9*R10/100 -> 50000 | T10: 50 | U10: 50000 | V10: 80 | W10: =W9*V10/100 -> 96000 | X10: 75 | Y10: =Y9*X10/100 -> 52500 | Z10: 80 | AA10: =AA9*Z10/100 -> 96000 | AB10: 80 | AC10: 96000 | AD10: 75 | AE10: =AE9*AD10/100 -> 37500 | AF10: 75 | AG10: =AG9*AF10/100 -> 37500 | AH10: 85 | AI10: =AI9*AH10/100 -> 102000
B11: Kilómetros recorridos anualmente en vacío (%, km) | D11: 10 | E11: =E9*D11/100 -> 15000 | F11: 15 | G11: =G9*F11/100 -> 18000 | H11: 15 | I11: =I9*H11/100 -> 15000 | J11: 15 | K11: =K9*J11/100 -> 15000 | L11: 50 | M11: =M9*L11/100 -> 30000 | N11: 20 | O11: =O9*N11/100 -> 18000 | P11: 25 | Q11: =Q9*P11/100 -> 26250 | R11: 50 | S11: =S9*R11/100 -> 50000 | T11: 50 | U11: =U9*T11/100 -> 50000 | V11: 20 | W11: =W9*V11/100 -> 24000 | X11: 25 | Y11: =Y9*X11/100 -> 17500 | Z11: 20 | AA11: =AA9*Z11/100 -> 24000 | AB11: 20 | AC11: =AC9*AB11/100 -> 24000 | AD11: 25 | AE11: =AE9*AD11/100 -> 12500 | AF11: 25 | AG11: =AG9*AF11/100 -> 12500 | AH11: 15 | AI11: =AI9*AH11/100 -> 18000
B12: Consumo medio (litros/100km) | E12: 35 | G12: 35 | I12: 35 | K12: 35 | M12: 38.5 | O12: 25 | Q12: 34.5 | S12: 34.5 | U12: 34.5 | W12: 35 | Y12: 25 | AA12: 35 | AC12: 35 | AE12: 11.5 | AG12: 11.5 | AI12: 35
B13: Horas trabajadas al año | E13: 2000 | G13: 1800 | I13: 1800 | K13: 1800 | M13: 1800 | O13: 1800 | Q13: 1800 | S13: 1800 | U13: 1800 | W13: 1800 | Y13: 1800 | AA13: 1800 | AC13: 1800 | AE13: 1800 | AG13: 1800 | AI13: 1800
B14: Horas trabajadas al año en carga (%, h) | D14: 90 | E14: =E13*D14/100 -> 1800 | F14: 85 | G14: =G13*F14/100 -> 1530 | H14: 85 | I14: =I13*H14/100 -> 1530 | J14: 85 | K14: 1530 | L14: 50 | M14: =M13*L14/100 -> 900 | N14: 80 | O14: =O13*N14/100 -> 1440 | P14: 75 | Q14: =Q13*P14/100 -> 1350 | R14: 50 | S14: =S13*R14/100 -> 900 | T14: 50 | U14: 900 | V14: 80 | W14: =W13*V14/100 -> 1440 | X14: 75 | Y14: =Y13*X14/100 -> 1350 | Z14: 80 | AA14: =AA13*Z14/100 -> 1440 | AB14: 80 | AC14: 1440 | AD14: 75 | AE14: =AE13*AD14/100 -> 1350 | AF14: 75 | AG14: =AG13*AF14/100 -> 1350 | AH14: 85 | AI14: =AI13*AH14/100 -> 1530
B15: Horas trabajadas al año en vacío (%, h) | D15: 10 | E15: =E13*D15/100 -> 200 | F15: 15 | G15: =G13*F15/100 -> 270 | H15: 15 | I15: =I13*H15/100 -> 270 | J15: 15 | K15: =K13*J15/100 -> 270 | L15: 50 | M15: =M13*L15/100 -> 900 | N15: 20 | O15: =O13*N15/100 -> 360 | P15: 25 | Q15: =Q13*P15/100 -> 450 | R15: 50 | S15: =S13*R15/100 -> 900 | T15: 50 | U15: =U13*T15/100 -> 900 | V15: 20 | W15: =W13*V15/100 -> 360 | X15: 25 | Y15: =Y13*X15/100 -> 450 | Z15: 20 | AA15: =AA13*Z15/100 -> 360 | AB15: 20 | AC15: =AC13*AB15/100 -> 360 | AD15: 25 | AE15: =AE13*AD15/100 -> 450 | AF15: 25 | AG15: =AG13*AF15/100 -> 450 | AH15: 15 | AI15: =AI13*AH15/100 -> 270
B16: Días trabajados al año | E16: 250 | G16: 225 | I16: 225 | K16: 225 | M16: 225 | O16: 225 | Q16: 225 | S16: 225 | U16: 225 | W16: 225 | Y16: 225 | AA16: 225 | AC16: 225 | AE16: 225 | AG16: 225 | AI16: 225
B17: Horas trabajadas por jornada | E17: =E13/E16 -> 8 | G17: =G13/G16 -> 8 | I17: =I13/I16 -> 8 | K17: 8 | M17: =M13/M16 -> 8 | O17: =O13/O16 -> 8 | Q17: =Q13/Q16 -> 8 | S17: =S13/S16 -> 8 | U17: 8 | W17: =W13/W16 -> 8 | Y17: =Y13/Y16 -> 8 | AA17: =AA13/AA16 -> 8 | AC17: 8 | AE17: =AE13/AE16 -> 8 | AG17: =AG13/AG16 -> 8 | AI17: =AI13/AI16 -> 8
B18: Pago de leasing o renta anual (€) | E18: 0 | G18: 0 | I18: 0 | K18: 0 | M18: 0 | O18: 0 | Q18: 0 | S18: 0 | U18: 0 | W18: 0 | Y18: 0 | AA18: 0 | AC18: 0 | AE18: 0 | AG18: 0 | AI18: 0
B19: Precio de tarifa sin IVA (€) | E19: 131208.73 | G19: 131208.73 | I19: 131208.73 | K19: 131208.73 | M19: 131208.73 | O19: 81134.25 | Q19: 131208.73 | S19: 131208.73 | U19: 131208.73 | W19: 131208.73 | Y19: 81134.25 | AA19: 131208.73 | AC19: 131208.73 | AE19: 27461.92 | AG19: 27461.92 | AI19: 131208.73
B20: Descuento sobre tarifa (%) | E20: 10 | G20: 10 | I20: 10 | K20: 10 | M20: 10 | O20: 10 | Q20: 10 | S20: 10 | U20: 10 | W20: 10 | Y20: 10 | AA20: 10 | AC20: 10 | AE20: 10 | AG20: 10 | AI20: 10
B21: Precio de adquisición sin IVA (€) | E21: =ROUND((1-E20/100)*E19,0) -> 118088 | G21: =(1-G20/100)*G19 -> 118088 | I21: =(1-I20/100)*I19 -> 118088 | K21: 118088 | M21: =(1-M20/100)*M19 -> 118088 | O21: =(1-O20/100)*O19 -> 73021 | Q21: =(1-Q20/100)*Q19 -> 118088 | S21: =(1-S20/100)*S19 -> 118088 | U21: 118088 | W21: =(1-W20/100)*W19 -> 118088 | Y21: =(1-Y20/100)*Y19 -> 73021 | AA21: =(1-AA20/100)*AA19 -> 118088 | AC21: 118088 | AE21: =(1-AE20/100)*AE19 -> 24716 | AG21: =(1-AG20/100)*AG19 -> 24716 | AI21: =(1-AI20/100)*AI19 -> 118088
B22: Vida útil (años) | E22: 5 | G22: 6 | I22: 8 | K22: 8 | M22: 8 | O22: 10 | Q22: 6 | S22: 6 | U22: 6 | W22: 6 | Y22: 10 | AA22: 6 | AC22: 6 | AE22: 8 | AG22: 8 | AI22: 6
B23: Valor residual sobre precio de tarifa (%) | D23: 15 | E23: =ROUND(E19*D23/100,0) -> 19681 | F23: 20 | G23: =G19*F23/100 -> 26242 | H23: 20 | I23: =I19*H23/100 -> 26242 | J23: 20 | K23: =K19*J23/100 -> 26242 | L23: 20 | M23: =M19*L23/100 -> 26242 | N23: 10 | O23: =O19*N23/100 -> 8113 | P23: 20 | Q23: =Q19*P23/100 -> 26242 | R23: 20 | S23: =S19*R23/100 -> 26242 | T23: 20 | U23: =U19*T23/100 -> 26242 | V23: 20 | W23: =W19*V23/100 -> 26242 | X23: 10 | Y23: =Y19*X23/100 -> 8113 | Z23: 20 | AA23: =AA19*Z23/100 -> 26242 | AB23: 20 | AC23: =AC19*AB23/100 -> 26242 | AD23: 15 | AE23: =AE19*AD23/100 -> 4119 | AF23: 15 | AG23: =AG19*AF23/100 -> 4119 | AH23: 20 | AI23: =AI19*AH23/100 -> 26242
B24: AMORTIZACIÓN DEL VEHÍCULO DE TRACCIÓN | E24: =IFERROR(ROUND((E21-E23-E102)/E22,0),0) -> 17932 | G24: =IFERROR(ROUND((G21-G23-G102)/G22,0),0) -> 14141 | I24: =IFERROR(ROUND((I21-I23-I102)/I22,0),0) -> 10630 | K24: =IFERROR(ROUND((K21-K23-K102)/K22,0),0) -> 10630 | M24: =IFERROR(ROUND((M21-M23-M102)/M22,0),0) -> 9950 | O24: =IFERROR(ROUND((O21-O23-O102)/O22,0),0) -> 6157 | Q24: =IFERROR(ROUND((Q21-Q23-Q102)/Q22,0),0) -> 14287 | S24: =IFERROR(ROUND((S21-S23-S102)/S22,0),0) -> 14336 | U24: =IFERROR(ROUND((U21-U23-U102)/U22,0),0) -> 14336 | W24: =IFERROR(ROUND((W21-W23-W102)/W22,0),0) -> 14141 | Y24: =IFERROR(ROUND((Y21-Y23-Y102)/Y22,0),0) -> 6231 | AA24: =IFERROR(ROUND((AA21-AA23-AA102)/AA22,0),0) -> 14141 | AC24: =IFERROR(ROUND((AC21-AC23-AC102)/AC22,0),0) -> 14141 | AE24: =IFERROR(ROUND((AE21-AE23-AE102)/AE22,0),0) -> 2486 | AG24: =IFERROR(ROUND((AG21-AG23-AG102)/AG22,0),0) -> 2486 | AI24: =IFERROR(ROUND((AI21-AI23-AI102)/AI22,0),0) -> 14141
B25: GASTOS FINANCIEROS DEL VEHÍCULO DE TRACCIÓN | E25: =IFERROR(ROUND((E21-E23-E102)*(E$3/(1-POWER(1+E$3,-E22))-1/E22),0),0) -> 2350 | G25: =IFERROR(ROUND((G21-G23-G102)*(G$3/(1-POWER(1+G$3,-G22))-1/G22),0),0) -> 2176 | I25: =IFERROR(ROUND((I21-I23-I102)*(I$3/(1-POWER(1+I$3,-I22))-1/I22),0),0) -> 2132 | K25: =IFERROR(ROUND((K21-K23-K102)*(K$3/(1-POWER(1+K$3,-K22))-1/K22),0),0) -> 2132 | M25: =IFERROR(ROUND((M21-M23-M102)*(M$3/(1-POWER(1+M$3,-M22))-1/M22),0),0) -> 1995 | O25: =IFERROR(ROUND((O21-O23-O102)*(O$3/(1-POWER(1+O$3,-O22))-1/O22),0),0) -> 1529 | Q25: =IFERROR(ROUND((Q21-Q23-Q102)*(Q$3/(1-POWER(1+Q$3,-Q22))-1/Q22),0),0) -> 2199 | S25: =IFERROR(ROUND((S21-S23-S102)*(S$3/(1-POWER(1+S$3,-S22))-1/S22),0),0) -> 2206 | U25: =IFERROR(ROUND((U21-U23-U102)*(U$3/(1-POWER(1+U$3,-U22))-1/U22),0),0) -> 2206 | W25: =IFERROR(ROUND((W21-W23-W102)*(W$3/(1-POWER(1+W$3,-W22))-1/W22),0),0) -> 2176 | Y25: =IFERROR(ROUND((Y21-Y23-Y102)*(Y$3/(1-POWER(1+Y$3,-Y22))-1/Y22),0),0) -> 1547 | AA25: =IFERROR(ROUND((AA21-AA23-AA102)*(AA$3/(1-POWER(1+AA$3,-AA22))-1/AA22),0),0) -> 2176 | AC25: =IFERROR(ROUND((AC21-AC23-AC102)*(AC$3/(1-POWER(1+AC$3,-AC22))-1/AC22),0),0) -> 2176 | AE25: =IFERROR(ROUND((AE21-AE23-AE102)*(AE$3/(1-POWER(1+AE$3,-AE22))-1/AE22),0),0) -> 499 | AG25: =IFERROR(ROUND((AG21-AG23-AG102)*(AG$3/(1-POWER(1+AG$3,-AG22))-1/AG22),0),0) -> 499 | AI25: =IFERROR(ROUND((AI21-AI23-AI102)*(AI$3/(1-POWER(1+AI$3,-AI22))-1/AI22),0),0) -> 2176
B26: Pago de alquiler o leasing anual (€) | O26: 0 | Y26: 0 | AI26: 0
B27: Precio de tarifa sin IVA (€) | O27: 8801.3 | Y27: 45009.78 | AI27: 0
B28: Descuento sobre tarifa (%) | O28: 5 | Y28: 5 | AI28: 0
B29: Precio de adquisición sin IVA (€) | O29: =ROUND((1-O28/100)*O27,0) -> 8361 | Y29: =ROUND((1-Y28/100)*Y27,0) -> 42759 | AI29: 0
B30: Vida útil (años) | O30: 10 | Y30: 10 | AI30: 0
B31: Valor residual sobre precio de tarifa (%) | N31: 10 | O31: =ROUND(O27*N31/100,0) -> 880 | X31: 10 | Y31: =ROUND(Y27*X31/100,0) -> 4501 | AH31: 0 | AI31: 0
B32: AMORTIZACION CARROZADO | O32: =IFERROR(ROUND((O29-O31)/O30,0),0) -> 748 | Y32: =IFERROR(ROUND((Y29-Y31)/Y30,0),0) -> 3826 | AI32: 0
B33: GASTOS FINANCIEROS CARROZADO | O33: =IFERROR(ROUND((O29-O31)*(O$3/(1-POWER(1+O$3,-O30))-1/O30),0),0) -> 185.75 | Y33: =IFERROR(ROUND((Y29-Y31)*(Y$3/(1-POWER(1+Y$3,-Y30))-1/Y30),0),0) -> 949.95 | AI33: 0
B34: Pago de leasing o renta anual (€) | E34: 0 | G34: 0 | I34: 0 | K34: 0 | M34: 0 | Q34: 0 | S34: 0 | U34: 0 | W34: 0 | AA34: 0 | AC34: 0 | AI34: 0
B35: Precio de tarifa sin IVA (€) | E35: 40796.37 | G35: 40796.37 | I35: 31994.46 | K35: 31994.46 | M35: 36217.25 | Q35: 100459.33 | S35: 100459.33 | U35: 100459.33 | W35: 70308.31 | AA35: 44109.58 | AC35: 44109.58 | AI35: 40796.37
B36: Descuento sobre tarifa (%) | E36: 5 | G36: 5 | I36: 5 | K36: 5 | M36: 5 | Q36: 5 | S36: 5 | U36: 5 | W36: 5 | AA36: 5 | AC36: 5 | AI36: 5
B37: Precio de adquisición sin IVA (€) | E37: =ROUND((1-E36/100)*E35,0) -> 38757 | G37: =ROUND((1-G36/100)*G35,0) -> 38757 | I37: =ROUND((1-I36/100)*I35,0) -> 30395 | K37: =ROUND((1-K36/100)*K35,0) -> 30395 | M37: =ROUND((1-M36/100)*M35,0) -> 34406 | Q37: =ROUND((1-Q36/100)*Q35,0) -> 95436 | S37: =ROUND((1-S36/100)*S35,0) -> 95436 | U37: =ROUND((1-U36/100)*U35,0) -> 95436 | W37: =ROUND((1-W36/100)*W35,0) -> 66793 | AA37: =ROUND((1-AA36/100)*AA35,0) -> 41904 | AC37: =ROUND((1-AC36/100)*AC35,0) -> 41904 | AI37: =ROUND((1-AI36/100)*AI35,0) -> 38757
B38: Vida útil (años) | E38: 7 | G38: 8 | I38: 12 | K38: 12 | M38: 12 | Q38: 8 | S38: 10 | U38: 10 | W38: 10 | AA38: 10 | AC38: 10 | AI38: 8
B39: Valor residual sobre precio de tarifa (%) | D39: 10 | E39: =ROUND(E35*D39/100,0) -> 4080 | F39: 15 | G39: =ROUND(G35*F39/100,0) -> 6119 | H39: 15 | I39: =ROUND(I35*H39/100,0) -> 4799 | J39: 15 | K39: =ROUND(K35*J39/100,0) -> 4799 | L39: 15 | M39: =ROUND(M35*L39/100,0) -> 5433 | P39: 20 | Q39: =ROUND(Q35*P39/100,0) -> 20092 | R39: 15 | S39: =ROUND(S35*R39/100,0) -> 15069 | T39: 15 | U39: =ROUND(U35*T39/100,0) -> 15069 | V39: 15 | W39: =ROUND(W35*V39/100,0) -> 10546 | Z39: 10 | AA39: =ROUND(AA35*Z39/100,0) -> 4411 | AB39: 10 | AC39: =ROUND(AC35*AB39/100,0) -> 4411 | AH39: 15 | AI39: =ROUND(AI35*AH39/100,0) -> 6119
B40: AMORTIZACIÓN REMOLQUE | E40: =IFERROR(ROUND((E37-E39-E93*E97)/E38,0),0) -> 4329 | G40: =IFERROR(ROUND((G37-G39-G93*G97)/G38,0),0) -> 3533 | I40: =IFERROR(ROUND((I37-I39-I93*I97)/I38,0),0) -> 1769 | K40: =IFERROR(ROUND((K37-K39-K93*K97)/K38,0),0) -> 1769 | M40: =IFERROR(ROUND((M37-M39-M93*M97)/M38,0),0) -> 1928 | Q40: =IFERROR(ROUND((Q37-Q39-Q93*Q97)/Q38,0),0) -> 8871 | S40: =IFERROR(ROUND((S37-S39-S93*S97)/S38,0),0) -> 7599 | U40: =IFERROR(ROUND((U37-U39-U93*U97)/U38,0),0) -> 7599 | W40: =IFERROR(ROUND((W37-W39-W93*W97)/W38,0),0) -> 5187 | AA40: =IFERROR(ROUND((AA37-AA39-AA93*AA97)/AA38,0),0) -> 3312 | AC40: =IFERROR(ROUND((AC37-AC39-AC93*AC97)/AC38,0),0) -> 3312 | AI40: =IFERROR(ROUND((AI37-AI39-AI93*AI97)/AI38,0),0) -> 3533
B41: GASTOS FINANCIEROS REMOLQUE | E41: =IFERROR(ROUND((E37-E39-E93*E97)*(E$3/(1-POWER(1+E$3,-E38))-1/E38),0),0) -> 767 | G41: =IFERROR(ROUND((G37-G39-G93*G97)*(G$3/(1-POWER(1+G$3,-G38))-1/G38),0),0) -> 708 | I41: =IFERROR(ROUND((I37-I39-I93*I97)*(I$3/(1-POWER(1+I$3,-I38))-1/I38),0),0) -> 526 | K41: =IFERROR(ROUND((K37-K39-K93*K97)*(K$3/(1-POWER(1+K$3,-K38))-1/K38),0),0) -> 526 | M41: =IFERROR(ROUND((M37-M39-M93*M97)*(M$3/(1-POWER(1+M$3,-M38))-1/M38),0),0) -> 573 | Q41: =IFERROR(ROUND((Q37-Q39-Q93*Q97)*(Q$3/(1-POWER(1+Q$3,-Q38))-1/Q38),0),0) -> 1779 | S41: =IFERROR(ROUND((S37-S39-S93*S97)*(S$3/(1-POWER(1+S$3,-S38))-1/S38),0),0) -> 1887 | U41: =IFERROR(ROUND((U37-U39-U93*U97)*(U$3/(1-POWER(1+U$3,-U38))-1/U38),0),0) -> 1887 | W41: =IFERROR(ROUND((W37-W39-W93*W97)*(W$3/(1-POWER(1+W$3,-W38))-1/W38),0),0) -> 1288 | AA41: =IFERROR(ROUND((AA37-AA39-AA93*AA97)*(AA$3/(1-POWER(1+AA$3,-AA38))-1/AA38),0),0) -> 822 | AC41: =IFERROR(ROUND((AC37-AC39-AC93*AC97)*(AC$3/(1-POWER(1+AC$3,-AC38))-1/AC38),0),0) -> 822 | AI41: =IFERROR(ROUND((AI37-AI39-AI93*AI97)*(AI$3/(1-POWER(1+AI$3,-AI38))-1/AI38),0),0) -> 708
B42: Pago de alquiler o leasing anual (€) | W42: 0 | Y42: 0 | AI42: 0
B43: Precio de tarifa sin IVA (€) | W43: 0 | Y43: 0 | AI43: 0
B44: Descuento sobre tarifa (%) | W44: 0 | Y44: 0 | AI44: 0
B45: Precio de adquisición sin IVA (€) | W45: 0 | Y45: 0 | AI45: 0
B46: Vida útil (años) | W46: 0 | Y46: 0 | AI46: 0
B47: Valor residual sobre precio de tarifa (%) | V47: 0 | W47: 0 | X47: 0 | Y47: 0 | AH47: 0 | AI47: 0
B48: AMORTIZACION EQUIPOS | W48: 0 | Y48: 0 | AI48: 0
B49: GASTOS FINANCIEROS EQUIPOS | W49: 0 | Y49: 0 | AI49: 0
B50: COSTES DE ADQUISICION | E50: =E24+E25+E32+E33+E40+E41+E48+E49 -> 25378 | G50: =G24+G25+G32+G33+G40+G41+G48+G49 -> 20558 | I50: =I24+I25+I32+I33+I40+I41+I48+I49 -> 15057 | K50: 15057 | M50: =M24+M25+M32+M33+M40+M41+M48+M49 -> 14446 | O50: =O24+O25+O32+O33+O40+O41+O48+O49 -> 8619.75 | Q50: =Q24+Q25+Q32+Q33+Q40+Q41+Q48+Q49 -> 27136 | S50: =S24+S25+S32+S33+S40+S41+S48+S49 -> 26028 | U50: 26028 | W50: =W24+W25+W32+W33+W40+W41+W48+W49 -> 22792 | Y50: =Y24+Y25+Y32+Y33+Y40+Y41+Y48+Y49 -> 12553.95 | AA50: =AA24+AA25+AA32+AA33+AA40+AA41+AA48+AA49 -> 20451 | AC50: 20451 | AE50: =AE24+AE25+AE32+AE33+AE40+AE41+AE48+AE49 -> 2985 | AG50: =AG24+AG25+AG32+AG33+AG40+AG41+AG48+AG49 -> 2985 | AI50: =AI24+AI25+AI32+AI33+AI40+AI41+AI48+AI49 -> 20558
B51: Coste total anual del conductor, incluidos costes de empresa (Seg. Soc. y otros) € | E51: 41626.13 | G51: 37501.03 | I51: 37501.03 | K51: 37501.03 | M51: 37501.03 | O51: 37501.03 | Q51: 41251.12 | S51: 41251.12 | U51: 41251.12 | W51: 37501.03 | Y51: 37501.03 | AA51: 37501.03 | AC51: 37501.03 | AE51: 33750.92 | AG51: 33750.92 | AI51: 37501.03
B52: Dieta total diaria del conductor (€/día) | E52: 93.09 | G52: 41.49 | I52: 41.49 | K52: 41.49 | M52: 18.86 | O52: 37.72 | Q52: 41.49 | S52: 41.49 | U52: 41.49 | W52: 41.49 | Y52: 37.72 | AA52: 37.72 | AC52: 37.72 | AE52: 18.86 | AG52: 18.86 | AI52: 41.49
B53: Número de días con dieta al año | E53: 250 | G53: 225 | I53: 200 | K53: 200 | M53: 180 | O53: 133 | Q53: 200 | S53: 200 | U53: 200 | W53: 225 | Y53: 75 | AA53: 200 | AC53: 200 | AE53: 150 | AG53: 150 | AI53: 225
B54: Dietas totales anuales (€) | E54: =E52*E53 -> 23273 | G54: =G52*G53 -> 9335 | I54: =I52*I53 -> 8298 | K54: 8298 | M54: =M52*M53 -> 3395 | O54: =O52*O53 -> 5017 | Q54: =Q52*Q53 -> 8298 | S54: =S52*S53 -> 8298 | U54: 8298 | W54: =W52*W53 -> 9335 | Y54: =Y52*Y53 -> 2829 | AA54: =AA52*AA53 -> 7544 | AC54: 7544 | AE54: =AE52*AE53 -> 2829 | AG54: =AG52*AG53 -> 2829 | AI54: =AI52*AI53 -> 9335
B55: Plus anual de actividad del conductor (€/km) | E55: 0.0708 | G55: 0.0708 | I55: 0.0708 | K55: 0.0708 | M55: 0.0708 | O55: 0.0708 | Q55: 0.1016 | S55: 0.1016 | U55: 0.1016 | W55: 0.0708 | Y55: 0.0708 | AA55: 0.0708 | AC55: 0.0708 | AE55: 0.0708 | AG55: 0.0708 | AI55: 0.0708
B56: Plus anual de actividad del conductor (€) | E56: =E55*E9 -> 10620 | G56: =G55*G9 -> 8496 | I56: =I55*I9 -> 7080 | K56: 7080 | M56: =M55*M9 -> 4248 | O56: =O55*O9 -> 6372 | Q56: =Q55*Q9 -> 10668 | S56: =S55*S9 -> 10160 | U56: 10160 | W56: =W55*W9 -> 8496 | Y56: =Y55*Y9 -> 4956 | AA56: =AA55*AA9 -> 8496 | AC56: 8496 | AE56: =AE55*AE9 -> 3540 | AG56: =AG55*AG9 -> 3540 | AI56: =AI55*AI9 -> 8496
B57: COSTES DE PERSONAL | E57: =E51+E54+E56 -> 75519.13 | G57: =G51+G54+G56 -> 55332.03 | I57: =I51+I54+I56 -> 52879.03 | K57: 52879.03 | M57: =M51+M54+M56 -> 45144.03 | O57: =O51+O54+O56 -> 48890.03 | Q57: =Q51+Q54+Q56 -> 60217.12 | S57: =S51+S54+S56 -> 59709.12 | U57: 59709.12 | W57: =W51+W54+W56 -> 55332.03 | Y57: =Y51+Y54+Y56 -> 45286.03 | AA57: =AA51+AA54+AA56 -> 53541.03 | AC57: 53541.03 | AE57: =AE51+AE54+AE56 -> 40119.92 | AG57: =AG51+AG54+AG56 -> 40119.92 | AI57: =AI51+AI54+AI56 -> 55332.03
B58: Responsabilidad civil del vehículo de tracción (€) | E58: 2030.8 | G58: 2030.8 | I58: 2030.8 | K58: 2030.8 | M58: 2030.8 | O58: 2104.99 | Q58: 2030.8 | S58: 2030.8 | U58: 2030.8 | W58: 2030.8 | Y58: 2104.99 | AA58: 2030.8 | AC58: 2030.8 | AE58: 1421.87 | AG58: 1421.87 | AI58: 2030.8
B59: Responsabilidad civil del remolque o semirremolque (€) | E59: 640.67 | G59: 640.67 | I59: 640.67 | K59: 640.67 | M59: 640.67 | Q59: 640.67 | S59: 640.67 | U59: 640.67 | W59: 640.67 | AA59: 640.67 | AC59: 640.67 | AI59: 640.67
B60: Responsabilidad civil de la mercancía (€) | E60: 152.23 | G60: 152.23 | I60: 152.23 | K60: 152.23 | M60: 152.23 | O60: 152.23 | Q60: 803.44 | S60: 1273.1 | U60: 1273.1 | W60: 177.84 | Y60: 152.23 | AA60: 152.23 | AC60: 152.23 | AI60: 152.23
B61: Seguro de accidentes de personal de a bordo (€) | E61: 70.65 | G61: 70.65 | I61: 70.65 | K61: 70.65 | M61: 70.65 | O61: 70.65 | Q61: 70.65 | S61: 70.65 | U61: 70.65 | W61: 70.65 | Y61: 70.65 | AA61: 70.65 | AC61: 70.65 | AE61: 70.65 | AG61: 70.65 | AI61: 70.65
B62: Retirada del carné de conducir (€) | E62: 175.87 | G62: 175.87 | I62: 175.87 | K62: 175.87 | M62: 175.87 | O62: 175.87 | Q62: 175.87 | S62: 175.87 | U62: 175.87 | W62: 175.87 | Y62: 175.87 | AA62: 175.87 | AC62: 175.87 | AE62: 175.87 | AG62: 175.87 | AI62: 175.87
B63: Seguro de la mercancía (€) | E63: 861.7 | G63: 861.7 | I63: 468.35 | K63: 468.35 | M63: 0 | O63: 514.43 | Q63: 861.7 | S63: 861.7 | U63: 861.7 | W63: 1242.65 | Y63: 1052.09 | AA63: 429.95 | AC63: 429.95 | AE63: 314.82 | AG63: 314.82 | AI63: 861.7
B64: Daños propios (seguro todo riesgo) (€) | E64: 3795.6 | G64: 3795.6 | I64: 3795.6 | K64: 3795.6 | M64: 4002.37 | O64: 1713 | Q64: 4560.03 | S64: 4560.03 | U64: 4560.03 | W64: 4943.86 | Y64: 2127.47 | AA64: 3795.6 | AC64: 3795.6 | AE64: 2383.29 | AG64: 2383.29 | AI64: 3795.6
B65: Otros seguros (€) | E65: 637.43 | G65: 637.43 | I65: 637.43 | K65: 637.43 | M65: 637.43 | O65: 637.43 | Q65: 637.43 | S65: 637.43 | U65: 637.43 | W65: 637.43 | Y65: 637.43 | AA65: 637.43 | AC65: 637.43 | AE65: 288.77 | AG65: 288.77 | AI65: 637.43
B66: COSTE TOTAL ANUAL DE LOS SEGUROS (€) | E66: =SUM(E58:E65) -> 8364.95 | G66: =SUM(G58:G65) -> 8364.95 | I66: =SUM(I58:I65) -> 7971.6 | K66: 7971.6 | M66: =SUM(M58:M65) -> 7710.02 | O66: =SUM(O58:O65) -> 5368.6 | Q66: =SUM(Q58:Q65) -> 9780.59 | S66: =SUM(S58:S65) -> 10250.25 | U66: 10250.25 | W66: =SUM(W58:W65) -> 9919.77 | Y66: =SUM(Y58:Y65) -> 6320.73 | AA66: =SUM(AA58:AA65) -> 7933.2 | AC66: 7933.2 | AE66: =SUM(AE58:AE65) -> 4655.27 | AG66: 4655.27 | AI66: =SUM(AI58:AI65) -> 8364.95
B67: Visados | E67: 17.75 | G67: 17.75 | I67: 17.75 | K67: 17.75 | M67: 17.75 | O67: 17.75 | Q67: 17.75 | S67: 17.75 | U67: 17.75 | W67: 17.75 | Y67: 17.75 | AA67: 17.75 | AC67: 17.75 | AE67: 17.03 | AG67: 17.03 | AI67: 17.75
B68: Inspección técnica de vehículos (I.T.V.) (€) | E68: 121.58 | G68: 121.58 | I68: 121.58 | K68: 121.58 | M68: 121.58 | O68: 73.97 | Q68: 121.58 | S68: 121.58 | U68: 121.58 | W68: 121.58 | Y68: 73.97 | AA68: 121.58 | AC68: 121.58 | AE68: 55.87 | AG68: 55.87 | AI68: 121.58
B69: Impuesto de actividades económicas (I.A.E.) repercutible a este vehículo (€) | E69: 384.61 | G69: 384.61 | I69: 384.61 | K69: 384.61 | M69: 384.61 | O69: 384.61 | Q69: 384.61 | S69: 384.61 | U69: 384.61 | W69: 384.61 | Y69: 384.61 | AA69: 384.61 | AC69: 384.61 | AE69: 315.25 | AG69: 315.25 | AI69: 384.61
B70: Impuesto de Vehículos de Tracción Mecánica (I.T.V.M.) (€) | E70: 331.11 | G70: 331.11 | I70: 331.11 | K70: 331.11 | M70: 331.11 | O70: 235.79 | Q70: 331.11 | S70: 331.11 | U70: 331.11 | W70: 331.11 | Y70: 235.79 | AA70: 331.11 | AC70: 331.11 | AE70: 165.55 | AG70: 165.55 | AI70: 331.11
B71: Revisión tacógrafo (€) | E71: 89.44 | G71: 89.44 | I71: 89.44 | K71: 89.44 | M71: 89.44 | O71: 89.44 | Q71: 89.44 | S71: 89.44 | U71: 89.44 | W71: 89.44 | Y71: 89.44 | AA71: 89.44 | AC71: 89.44 | AE71: 89.44 | AI71: 89.44
B72: Inspecciones A.T.P. (transporte mercancías perecederas) | W72: 82.34 | Y72: 82.34 | AI72: 0
B73: Inspecciones A.D.R. (transporte mercancías peligrosas) | Q73: 141.95 | S73: 752.39 | U73: 752.39 | AI73: 0
B74: Otros costes fiscales (€) | E74: 31.23 | G74: 0 | I74: 0 | K74: 0 | M74: 0 | O74: 0 | Q74: 0 | S74: 0 | U74: 0 | W74: 0 | Y74: 0 | AA74: 0 | AC74: 0 | AE74: 0 | AG74: 0 | AI74: 0
B75: COSTE FISCAL TOTAL ANUAL | E75: =SUM(E67:E74) -> 975.72 | G75: =SUM(G67:G74) -> 944.49 | I75: =SUM(I67:I74) -> 944.49 | K75: 944.49 | M75: =SUM(M67:M74) -> 944.49 | O75: =SUM(O67:O74) -> 801.56 | Q75: =SUM(Q67:Q74) -> 1086.44 | S75: =SUM(S67:S74) -> 1696.88 | U75: 1696.88 | W75: =SUM(W67:W74) -> 1026.83 | Y75: =SUM(Y67:Y74) -> 883.9 | AA75: =SUM(AA67:AA74) -> 944.49 | AC75: 944.49 | AE75: =SUM(AE67:AE74) -> 643.14 | AG75: =SUM(AG67:AG74) -> 553.7 | AI75: =SUM(AI67:AI74) -> 944.49
B76: SEGUROS Y COSTES FISCALES | E76: =E66+E75 -> 9340.67 | G76: =G66+G75 -> 9309.44 | I76: =I66+I75 -> 8916.09 | K76: 8916.09 | M76: =M66+M75 -> 8654.51 | O76: =O66+O75 -> 6170.16 | Q76: =Q66+Q75 -> 10867.03 | S76: =S66+S75 -> 11947.13 | U76: 11947.13 | W76: =W66+W75 -> 10946.6 | Y76: =Y66+Y75 -> 7204.63 | AA76: =AA66+AA75 -> 8877.69 | AC76: 8877.69 | AE76: =AE66+AE75 -> 5298.41 | AG76: =AG66+AG75 -> 5208.97 | AI76: =AI66+AI75 -> 9309.44
B77: Precio del carburante, con IVA (€/litro) | E77: 1.3903 | G77: 1.3903 | I77: 1.3903 | K77: 1.3903 | M77: 1.3903 | O77: 1.3903 | Q77: 1.3903 | S77: 1.3903 | U77: 1.3903 | W77: 1.3903 | Y77: 1.3903 | AA77: 1.3903 | AC77: 1.3903 | AE77: 1.3903 | AG77: 1.3903 | AI77: 1.3903
B78: Descuento (€/litro) | E78: 0.1192 | G78: 0.1192 | I78: 0.1192 | K78: 0.1192 | M78: 0.1192 | O78: 0.1192 | Q78: 0.1192 | S78: 0.1192 | U78: 0.1192 | W78: 0.1192 | Y78: 0.1192 | AA78: 0.1192 | AC78: 0.1192 | AE78: 0.702 | AG78: 0.702 | AI78: 0.1192
B79: IVA aplicado al carburante (%)(€/litro) | D79: 21 | E79: =ROUND((D79/100)*(E77-E78)/(1+D79/100),4) -> 0.2206 | F79: 21 | G79: =ROUND((F79/100)*(G77-G78)/(1+F79/100),4) -> 0.2206 | H79: 21 | I79: =ROUND((H79/100)*(I77-I78)/(1+H79/100),4) -> 0.2206 | J79: 21 | K79: =ROUND((J79/100)*(K77-K78)/(1+J79/100),4) -> 0.2206 | L79: 21 | M79: =ROUND((L79/100)*(M77-M78)/(1+L79/100),4) -> 0.2206 | N79: 21 | O79: =ROUND((N79/100)*(O77-O78)/(1+N79/100),4) -> 0.2206 | P79: 21 | Q79: =ROUND((P79/100)*(Q77-Q78)/(1+P79/100),4) -> 0.2206 | R79: 21 | S79: =ROUND((R79/100)*(S77-S78)/(1+R79/100),4) -> 0.2206 | T79: 21 | U79: =ROUND((T79/100)*(U77-U78)/(1+T79/100),4) -> 0.2206 | V79: 21 | W79: =ROUND((V79/100)*(W77-W78)/(1+V79/100),4) -> 0.2206 | X79: 21 | Y79: =ROUND((X79/100)*(Y77-Y78)/(1+X79/100),4) -> 0.2206 | Z79: 21 | AA79: =ROUND((Z79/100)*(AA77-AA78)/(1+Z79/100),4) -> 0.2206 | AB79: 21 | AC79: =ROUND((AB79/100)*(AC77-AC78)/(1+AB79/100),4) -> 0.2206 | AD79: 21 | AE79: =ROUND((AD79/100)*(AE77-AE78)/(1+AD79/100),4) -> 0.1195 | AF79: 21 | AG79: =ROUND((AF79/100)*(AG77-AG78)/(1+AF79/100),4) -> 0.1195 | AH79: 21 | AI79: =ROUND((AH79/100)*(AI77-AI78)/(1+AH79/100),4) -> 0.2206
B80: Precio carburante sin IVA (€/litro) | E80: =ROUND((E77-E78)/(1+D79/100),4) -> 1.0505 | G80: =ROUND((G77-G78)/(1+F79/100),4) -> 1.0505 | I80: =ROUND((I77-I78)/(1+H79/100),4) -> 1.0505 | K80: =ROUND((K77-K78)/(1+J79/100),4) -> 1.0505 | M80: =ROUND((M77-M78)/(1+L79/100),4) -> 1.0505 | O80: =ROUND((O77-O78)/(1+N79/100),4) -> 1.0505 | Q80: =ROUND((Q77-Q78)/(1+P79/100),4) -> 1.0505 | S80: =ROUND((S77-S78)/(1+R79/100),4) -> 1.0505 | U80: =ROUND((U77-U78)/(1+T79/100),4) -> 1.0505 | W80: =ROUND((W77-W78)/(1+V79/100),4) -> 1.0505 | Y80: =ROUND((Y77-Y78)/(1+X79/100),4) -> 1.0505 | AA80: =ROUND((AA77-AA78)/(1+Z79/100),4) -> 1.0505 | AC80: =ROUND((AC77-AC78)/(1+AB79/100),4) -> 1.0505 | AE80: =ROUND((AE77-AE78)/(1+AD79/100),4) -> 0.5688 | AG80: =ROUND((AG77-AG78)/(1+AF79/100),4) -> 0.5688 | AI80: =ROUND((AI77-AI78)/(1+AH79/100),4) -> 1.0505
B81: GASTO TOTAL ANUAL EN CARBURANTE DEL VEHÍCULO (€, SIN IVA) | E81: =ROUND(E9/100*E12*E80,0) -> 55151 | G81: =ROUND(G9/100*G12*G80,0) -> 44121 | I81: =ROUND(I9/100*I12*I80,0) -> 36768 | K81: =ROUND(K9/100*K12*K80,0) -> 36768 | M81: =ROUND(M9/100*M12*M80,0) -> 24267 | O81: =ROUND(O9/100*O12*O80,0) -> 23636 | Q81: =ROUND(Q9/100*Q12*Q80,0) -> 38054 | S81: =ROUND(S9/100*S12*S80,0) -> 36242 | U81: =ROUND(U9/100*U12*U80,0) -> 36242 | W81: =ROUND(W9/100*W12*W80,0) -> 44121 | Y81: =ROUND(Y9/100*Y12*Y80,0) -> 18384 | AA81: =ROUND(AA9/100*AA12*AA80,0) -> 44121 | AC81: =ROUND(AC9/100*AC12*AC80,0) -> 44121 | AE81: =ROUND(AE9/100*AE12*AE80,0) -> 3271 | AG81: =ROUND(AG9/100*AG12*AG80,0) -> 3271 | AI81: =ROUND(AI9/100*AI12*AI80,0) -> 44121
B82: Precio de compra de carburante | W82: 0.9561 | Y82: 0.9561 | AI82: 0
B83: Descuento (€/litro) | W83: 0 | Y83: 0 | AI83: 0
B84: IVA aplicado al carburante (%) | W84: 21 | Y84: 21 | AI84: 21
B85: IVA aplicado al carburante (€/litro) | W85: =(W84/100)*(W82-W83)/(1+W84/100) -> 0.17 | Y85: =(Y84/100)*(Y82-Y83)/(1+Y84/100) -> 0.17 | AI85: 0
B86: Precio carburante sin IVA (€/litro) | W86: =(W82-W83)/(1+W84/100) -> 0.7902 | Y86: =(Y82-Y83)/(1+Y84/100) -> 0.7902 | AI86: 0
B87: Consumo medio de los equipos (litros/hora) | W87: 4 | Y87: 3 | AI87: 0
B88: Horas anuales de utilización de los equipos | W88: 2000 | Y88: 2000 | AI88: 0
B89: GASTO TOTAL ANUAL EN CARBURANTE EQUIPOS | W89: =W86*W87*W88 -> 6321.6 | Y89: =Y86*Y87*Y88 -> 4741.2 | AI89: 0
B90: Número de neumáticos direccionables | E90: 2 | G90: 2 | I90: 2 | K90: 2 | M90: 2 | O90: 2 | Q90: 2 | S90: 2 | U90: 2 | W90: 2 | Y90: 2 | AA90: 2 | AC90: 2 | AE90: 2 | AG90: 2 | AI90: 2
B91: Número de neumáticos motrices | E91: 4 | G91: 4 | I91: 4 | K91: 4 | M91: 4 | O91: 4 | Q91: 4 | S91: 4 | U91: 4 | W91: 4 | Y91: 4 | AA91: 4 | AC91: 4 | AE91: 2 | AG91: 2 | AI91: 4
B92: Número de neumáticos arrastre | I92: 2 | K92: 2 | AI92: 0
B93: Número de neumáticos semirremolque o remolque | E93: 6 | G93: 6 | I93: 6 | K93: 6 | M93: 8 | Q93: 6 | S93: 6 | U93: 6 | W93: 6 | AA93: 6 | AC93: 6 | AI93: 6
B94: Precio sin IVA de un neumático direccionable (€) | E94: 728.93 | G94: 728.93 | I94: 728.93 | K94: 728.93 | M94: 728.93 | O94: 772.88 | Q94: 728.93 | S94: 728.93 | U94: 728.93 | W94: 728.93 | Y94: 772.88 | AA94: 728.93 | AC94: 728.93 | AE94: 212.16 | AG94: 212.16 | AI94: 728.93
B95: Precio sin IVA de un neumático motriz (€) | E95: 728.93 | G95: 728.93 | I95: 728.93 | K95: 728.93 | M95: 728.93 | O95: 772.88 | Q95: 728.93 | S95: 728.93 | U95: 728.93 | W95: 728.93 | Y95: 772.88 | AA95: 728.93 | AC95: 728.93 | AE95: 212.16 | AG95: 212.16 | AI95: 728.93
B96: Precio sin IVA de un neumático arrastre (€) | I96: 728.93 | K96: 728.93 | AI96: 728.93
B97: Precio sin IVA de un neumático remolque-semirremolque (€) | E97: 728.93 | G97: 728.93 | I97: 728.93 | K97: 728.93 | M97: 728.93 | Q97: 728.93 | S97: 728.93 | U97: 728.93 | W97: 728.93 | AA97: 728.93 | AC97: 728.93 | AI97: 728.93
B98: Duración media de un neumático direccionable (km) | E98: 150000 | G98: 150000 | I98: 150000 | K98: 150000 | M98: 50000 | O98: 125000 | Q98: 150000 | S98: 150000 | U98: 150000 | W98: 150000 | Y98: 125000 | AA98: 150000 | AC98: 150000 | AE98: 60000 | AG98: 60000 | AI98: 150000
B99: Duración media de un neumático motriz (km) | E99: 150000 | G99: 150000 | I99: 150000 | K99: 150000 | M99: 50000 | O99: 125000 | Q99: 150000 | S99: 150000 | U99: 150000 | W99: 150000 | Y99: 125000 | AA99: 150000 | AC99: 150000 | AE99: 60000 | AG99: 60000 | AI99: 150000
B100: Duración media de un neumático arrastre (km) | I100: 150000 | K100: 150000 | AI100: 150000
B101: Duración media de un neumático remolque-semirremolque (km) | E101: 150000 | G101: 150000 | I101: 150000 | K101: 150000 | M101: 50000 | Q101: 150000 | S101: 150000 | U101: 150000 | W101: 150000 | AA101: 150000 | AC101: 150000 | AI101: 150000
B102: GASTO TOTAL ANUAL EN NEUMATICOS (€, SIN IVA) | E102: =ROUND(IFERROR(E90*E94*E9/E98,0)+IFERROR(E91*E95*E9/E99,0)+IFERROR(E92*E96*E9/E100,0)+IFERROR(E93*E97*E9/E101,0),0) -> 8747.16 | G102: =ROUND(IFERROR(G90*G94*G9/G98,0)+IFERROR(G91*G95*G9/G99,0)+IFERROR(G92*G96*G9/G100,0)+IFERROR(G93*G97*G9/G101,0),0) -> 6997.73 | I102: =ROUND(IFERROR(I90*I94*I9/I98,0)+IFERROR(I91*I95*I9/I99,0)+IFERROR(I92*I96*I9/I100,0)+IFERROR(I93*I97*I9/I101,0),0) -> 6803.35 | K102: =ROUND(IFERROR(K90*K94*K9/K98,0)+IFERROR(K91*K95*K9/K99,0)+IFERROR(K92*K96*K9/K100,0)+IFERROR(K93*K97*K9/K101,0),0) -> 6803.35 | M102: =ROUND(IFERROR(M90*M94*M9/M98,0)+IFERROR(M91*M95*M9/M99,0)+IFERROR(M92*M96*M9/M100,0)+IFERROR(M93*M97*M9/M101,0),0) -> 12246.02 | O102: =ROUND(IFERROR(O90*O94*O9/O98,0)+IFERROR(O91*O95*O9/O99,0)+IFERROR(O92*O96*O9/O100,0)+IFERROR(O93*O97*O9/O101,0),0) -> 3338.84 | Q102: =ROUND(IFERROR(Q90*Q94*Q9/Q98,0)+IFERROR(Q91*Q95*Q9/Q99,0)+IFERROR(Q92*Q96*Q9/Q100,0)+IFERROR(Q93*Q97*Q9/Q101,0),0) -> 6123.01 | S102: =ROUND(IFERROR(S90*S94*S9/S98,0)+IFERROR(S91*S95*S9/S99,0)+IFERROR(S92*S96*S9/S100,0)+IFERROR(S93*S97*S9/S101,0),0) -> 5831.44 | U102: =ROUND(IFERROR(U90*U94*U9/U98,0)+IFERROR(U91*U95*U9/U99,0)+IFERROR(U92*U96*U9/U100,0)+IFERROR(U93*U97*U9/U101,0),0) -> 5831.44 | W102: =ROUND(IFERROR(W90*W94*W9/W98,0)+IFERROR(W91*W95*W9/W99,0)+IFERROR(W92*W96*W9/W100,0)+IFERROR(W93*W97*W9/W101,0),0) -> 6997.73 | Y102: =ROUND(IFERROR(Y90*Y94*Y9/Y98,0)+IFERROR(Y91*Y95*Y9/Y99,0)+IFERROR(Y92*Y96*Y9/Y100,0)+IFERROR(Y93*Y97*Y9/Y101,0),0) -> 2596.88 | AA102: =ROUND(IFERROR(AA90*AA94*AA9/AA98,0)+IFERROR(AA91*AA95*AA9/AA99,0)+IFERROR(AA92*AA96*AA9/AA100,0)+IFERROR(AA93*AA97*AA9/AA101,0),0) -> 6997.73 | AC102: =ROUND(IFERROR(AC90*AC94*AC9/AC98,0)+IFERROR(AC91*AC95*AC9/AC99,0)+IFERROR(AC92*AC96*AC9/AC100,0)+IFERROR(AC93*AC97*AC9/AC101,0),0) -> 6997.73 | AE102: =ROUND(IFERROR(AE90*AE94*AE9/AE98,0)+IFERROR(AE91*AE95*AE9/AE99,0)+IFERROR(AE92*AE96*AE9/AE100,0)+IFERROR(AE93*AE97*AE9/AE101,0),0) -> 707.2 | AG102: =ROUND(IFERROR(AG90*AG94*AG9/AG98,0)+IFERROR(AG91*AG95*AG9/AG99,0)+IFERROR(AG92*AG96*AG9/AG100,0)+IFERROR(AG93*AG97*AG9/AG101,0),0) -> 707.2 | AI102: =ROUND(IFERROR(AI90*AI94*AI9/AI98,0)+IFERROR(AI91*AI95*AI9/AI99,0)+IFERROR(AI92*AI96*AI9/AI100,0)+IFERROR(AI93*AI97*AI9/AI101,0),0) -> 6997.73
B103: Coste de mantenimiento por km, sin IVA (€/km) | E103: 0.0194 | G103: 0.0194 | I103: 0.0233 | K103: 0.0233 | M103: 0.0785 | O103: 0.023 | Q103: 0.0628 | S103: 0.0628 | U103: 0.0628 | W103: 0.023 | Y103: 0.3061 | AA103: 0.0194 | AC103: 0.0194 | AE103: 0.011 | AG103: 0.011 | AI103: 0.0194
B104: GASTO ANUAL EN MANTENIMIENTO, SIN IVA (€) | E104: =E103*E9 -> 2910 | G104: =G103*G9 -> 2328 | I104: =I103*I9 -> 2330 | K104: =K103*K9 -> 2330 | M104: =M103*M9 -> 4710 | O104: =O103*O9 -> 2070 | Q104: =Q103*Q9 -> 6594 | S104: =S103*S9 -> 6280 | U104: =U103*U9 -> 6280 | W104: =W103*W9 -> 2760 | Y104: =Y103*Y9 -> 21427 | AA104: =AA103*AA9 -> 2328 | AC104: =AC103*AC9 -> 2328 | AE104: =AE103*AE9 -> 550 | AG104: =AG103*AG9 -> 550 | AI104: =AI103*AI9 -> 2328
B105: Coste de reparaciones por km, sin IVA (€/km) | E105: 0.0383 | G105: 0.0383 | I105: 0.0383 | K105: 0.0383 | M105: 0.0491 | O105: 0.0307 | Q105: 0.0482 | S105: 0.0482 | U105: 0.0482 | W105: 0.0482 | Y105: 0.0383 | AA105: 0.0383 | AC105: 0.0383 | AE105: 0.0196 | AG105: 0.0196 | AI105: 0.0383
B106: GASTO ANUAL EN REPARACIONES, SIN IVA (€) | E106: =E105*E9 -> 5745 | G106: =G105*G9 -> 4596 | I106: =I105*I9 -> 3830 | K106: =K105*K9 -> 3830 | M106: =M105*M9 -> 2946 | O106: =O105*O9 -> 2763 | Q106: =Q105*Q9 -> 5061 | S106: =S105*S9 -> 4820 | U106: =U105*U9 -> 4820 | W106: =W105*W9 -> 5784 | Y106: =Y105*Y9 -> 2681 | AA106: =AA105*AA9 -> 4596 | AC106: =AC105*AC9 -> 4596 | AE106: =AE105*AE9 -> 980 | AG106: =AG105*AG9 -> 980 | AI106: =AI105*AI9 -> 4596
B107: GASTO ANUAL EN PEAJES, SIN IVA (€) | E107: 19164.56 | G107: 2384.92 | I107: 1987.44 | K107: 1987.44 | M107: 0 | O107: 1533.17 | Q107: 10434.05 | S107: 9937.18 | U107: 9937.18 | W107: 2384.92 | Y107: 1192.47 | AA107: 2384.92 | AC107: 2384.92 | AE107: 0 | AG107: 0 | AI107: 2384.92
B108: COSTES VARIABLES | E108: =ROUND(E81+E89+E102+E104+E106+E107+E114,0) -> 94390.76 | G108: =ROUND(G81+G89+G102+G104+G106+G107+G114,0) -> 62566.08 | I108: =ROUND(I81+I89+I102+I104+I106+I107+I114,0) -> 53500.82 | K108: =ROUND(K81+K89+K102+K104+K106+K107+K114,0) -> 53500.82 | M108: =ROUND(M81+M89+M102+M104+M106+M107+M114,0) -> 45345.16 | O108: =ROUND(O81+O89+O102+O104+O106+O107+O114,0) -> 34486.6 | Q108: =ROUND(Q81+Q89+Q102+Q104+Q106+Q107+Q114,0) -> 68110.46 | S108: =ROUND(S81+S89+S102+S104+S106+S107+S114,0) -> 64867.2 | U108: =ROUND(U81+U89+U102+U104+U106+U107+U114,0) -> 64867.2 | W108: =ROUND(W81+W89+W102+W104+W106+W107+W114,0) -> 70507.68 | Y108: =ROUND(Y81+Y89+Y102+Y104+Y106+Y107+Y114,0) -> 51913.56 | AA108: =ROUND(AA81+AA89+AA102+AA104+AA106+AA107+AA114,0) -> 62566.08 | AC108: =ROUND(AC81+AC89+AC102+AC104+AC106+AC107+AC114,0) -> 62566.08 | AE108: =ROUND(AE81+AE89+AE102+AE104+AE106+AE107+AE114,0) -> 5800.97 | AG108: =ROUND(AG81+AG89+AG102+AG104+AG106+AG107+AG114,0) -> 5800.97 | AI108: =ROUND(AI81+AI89+AI102+AI104+AI106+AI107+AI114,0) -> 62566.08
B109: % Costes anuales de gestión, administración y comercialización, repercutibles a este vehículo | D109: 6.5 | E109: =ROUND((E50+E57+E76+E108)*(D109/100),0) -> 13300.86 | F109: 6.5 | G109: =ROUND((G50+G57+G76+G108)*(F109/100),0) -> 9604.76 | H109: 6.5 | I109: =ROUND((I50+I57+I76+I108)*(H109/100),0) -> 8472.94 | J109: 6.5 | K109: =ROUND((K50+K57+K76+K108)*(J109/100),0) -> 8472.94 | L109: 6.5 | M109: =ROUND((M50+M57+M76+M108)*(L109/100),0) -> 7383.33 | N109: 6.5 | O109: =ROUND((O50+O57+O76+O108)*(N109/100),0) -> 6380.83 | P109: 6.5 | Q109: =ROUND((Q50+Q57+Q76+Q108)*(P109/100),0) -> 10811.49 | R109: 6.5 | S109: =ROUND((S50+S57+S76+S108)*(R109/100),0) -> 10565.84 | T109: 6.5 | U109: =ROUND((U50+U57+U76+U108)*(T109/100),0) -> 10565.84 | V109: 6.5 | W109: =ROUND((V109/100)*(W50+W57+W76+W108),0) -> 10372.59 | X109: 6.5 | Y109: =ROUND((X109/100)*(Y50+Y57+Y76+Y108),0) -> 7602.28 | Z109: 6.5 | AA109: =ROUND((Z109/100)*(AA50+AA57+AA76+AA108),0) -> 9453.33 | AB109: 6.5 | AC109: =ROUND((AB109/100)*(AC50+AC57+AC76+AC108),0) -> 9453.33 | AD109: 6.5 | AE109: =ROUND((AD109/100)*(AE50+AE57+AE76+AE108),0) -> 3523.28 | AF109: 6.5 | AG109: =ROUND((AF109/100)*(AG50+AG57+AG76+AG108),0) -> 3517.47 | AH109: 6.5 | AI109: =ROUND((AH109/100)*(AI50+AI57+AI76+AI108),0) -> 9604.76
B112: COSTES INDIRECTOS | E112: =ROUND((E50+E57+E76+E108)*(D109/100),0) -> 13300.86 | G112: =ROUND((G50+G57+G76+G108)*(F109/100),0) -> 9604.76 | I112: =ROUND((I50+I57+I76+I108)*(H109/100),0) -> 8472.94 | K112: =ROUND((K50+K57+K76+K108)*(J109/100),0) -> 8472.94 | M112: =ROUND((M50+M57+M76+M108)*(L109/100),0) -> 7383.33 | O112: =ROUND((O50+O57+O76+O108)*(N109/100),0) -> 6380.83 | Q112: =ROUND((Q50+Q57+Q76+Q108)*(P109/100),0) -> 10811.49 | S112: =ROUND((S50+S57+S76+S108)*(R109/100),0) -> 10565.84 | U112: =ROUND((U50+U57+U76+U108)*(T109/100),0) -> 10565.84 | W112: =ROUND((V109/100)*(W50+W57+W76+W108),0) -> 10372.59 | Y112: =ROUND((X109/100)*(Y50+Y57+Y76+Y108),0) -> 7602.28 | AA112: =ROUND((Z109/100)*(AA50+AA57+AA76+AA108),0) -> 9453.33 | AC112: =ROUND((AB109/100)*(AC50+AC57+AC76+AC108),0) -> 9453.33 | AE112: =ROUND((AD109/100)*(AE50+AE57+AE76+AE108),0) -> 3523.28 | AG112: =ROUND((AF109/100)*(AG50+AG57+AG76+AG108),0) -> 3517.47 | AI112: =ROUND((AH109/100)*(AI50+AI57+AI76+AI108),0) -> 9604.76
B113: COSTES TOTALES | E113: =(E50+E57+E76+E108)+E112 -> 241236.42 | G113: =(G50+G57+G76+G108)+G112 -> 153670.62 | I113: =(I50+I57+I76+I108)+I112 -> 134962.96 | K113: =(K50+K57+K76+K108)+K112 -> 134962.96 | M113: =(M50+M57+M76+M108)+M112 -> 116779.59 | O113: =(O50+O57+O76+O108)+O112 -> 100459.42 | Q113: =(Q50+Q57+Q76+Q108)+Q112 -> 171694.08 | S113: =(S50+S57+S76+S108)+S112 -> 167601.64 | U113: =(U50+U57+U76+U108)+U112 -> 167601.64 | W113: =(W50+W57+W76+W108)+W112 -> 166481.23 | Y113: =(Y50+Y57+Y76+Y108)+Y112 -> 100545.06 | AA113: =(AA50+AA57+AA76+AA108)+AA112 -> 151493.87 | AC113: =(AC50+AC57+AC76+AC108)+AC112 -> 151493.87 | AE113: =(AE50+AE57+AE76+AE108)+AE112 -> 56318.16 | AG113: =(AG50+AG57+AG76+AG108)+AG112 -> 56318.16 | AI113: =(AI50+AI57+AI76+AI108)+AI112 -> 153670.62
B114: GASTO ANUAL POR CONSUMO DE DISOLUCION DE UREA (€, sin IVA) | E114: 2673.04 | G114: 2138.43 | I114: 1782.03 | K114: 1782.03 | M114: 1176.14 | O114: 1145.59 | Q114: 1844.4 | S114: 1756.58 | U114: 1756.58 | W114: 2138.43 | Y114: 891.01 | AA114: 2138.43 | AC114: 2138.43 | AE114: 292.77 | AG114: 292.77 | AI114: 2138.43
B115: Coste anual por disolucion de urea por kilometro(€/km, sin IVA) | E115: 0.0178 | G115: 0.0178 | I115: 0.0178 | K115: 0.0178 | M115: 0.0196 | O115: 0.0127 | Q115: 0.0176 | S115: 0.0176 | U115: 0.0176 | W115: 0.0178 | Y115: 0.0127 | AA115: 0.0178 | AC115: 0.0178 | AE115: 0.0059 | AG115: 0.0059 | AI115: 0.0178
B120: Valor de adquisición del vehículo sin IVA y sin neumáticos (€) | E120: =E21-(E90*E94+E91*E95+E92*E96) -> 111140.04 | G120: =G21-(G90*G94+G91*G95+G92*G96) -> 111139.983 | I120: =I21-(I90*I94+I91*I95+I92*I96) -> 109713.663 | K120: =K21-(K90*K94+K91*K95+K92*K96) -> 109713.663 | M120: =M21-(M90*M94+M91*M95+M92*M96) -> 111139.983 | O120: =O21-(O90*O94+O91*O95+O92*O96) -> 66833.568 | Q120: =Q21-(Q90*Q94+Q91*Q95+Q92*Q96) -> 111139.983 | S120: =S21-(S90*S94+S91*S95+S92*S96) -> 111139.983 | U120: =U21-(U90*U94+U91*U95+U92*U96) -> 111139.983 | W120: =W21-(W90*W94+W91*W95+W92*W96) -> 111139.983 | Y120: =Y21-(Y90*Y94+Y91*Y95+Y92*Y96) -> 66833.568 | AA120: =AA21-(AA90*AA94+AA91*AA95+AA92*AA96) -> 111139.983 | AC120: =AC21-(AC90*AC94+AC91*AC95+AC92*AC96) -> 111139.983 | AE120: =AE21-(AE90*AE94+AE91*AE95+AE92*AE96) -> 23326.845 | AG120: =AG21-(AG90*AG94+AG91*AG95+AG92*AG96) -> 23326.845 | AI120: =AI21-(AI90*AI94+AI91*AI95+AI92*AI96) -> 111139.983
B121: Valor de adquisición del remolque-semirremolque sin IVA y sin neumáticos (€) | E121: =E37-(E93*E97) -> 33602.04 | G121: =G37-(G93*G97) -> 33602.04 | I121: =I37-(I93*I97) -> 25429.04 | K121: =K37-(K93*K97) -> 25429.04 | M121: =M37-(M93*M97) -> 27923.72 | O121: =O37-(O93*O97) -> 0 | Q121: =Q37-(Q93*Q97) -> 89000.04 | S121: =S37-(S93*S97) -> 89000.04 | U121: =U37-(U93*U97) -> 89000.04 | W121: =W37-(W93*W97) -> 61004.04 | Y121: =Y37-(Y93*Y97) -> 0 | AA121: =AA37-(AA93*AA97) -> 36678.04 | AC121: =AC37-(AC93*AC97) -> 36678.04 | AE121: =AE37-(AE93*AE97) -> 0 | AG121: =AG37-(AG93*AG97) -> 0 | AI121: =AI37-(AI93*AI97) -> 33602.04
B122: Dietas y plus de actividad anuales del conductor (€) | E122: =E54+E56 -> 30650 | G122: =G54+G56 -> 16122 | I122: =I54+I56 -> 13904 | K122: =K54+K56 -> 13904 | M122: =M54+M56 -> 6910.8 | O122: =O54+O56 -> 10296.63 | Q122: =Q54+Q56 -> 17153.5 | S122: =S54+S56 -> 16694 | U122: =U54+U56 -> 16694 | W122: =W54+W56 -> 15774 | Y122: =Y54+Y56 -> 7038.25 | AA122: =AA54+AA56 -> 14502 | AC122: =AC54+AC56 -> 14502 | AE122: =AE54+AE56 -> 5759 | AG122: =AG54+AG56 -> 5759 | AI122: =AI54+AI56 -> 16122
B123: Gasto anual en mantenimiento, sin IVA (€) | E123: =E104+E106 -> 8100 | G123: =G104+G106 -> 6480 | I123: =I104+I106 -> 5760 | K123: =K104+K106 -> 5760 | M123: =M104+M106 -> 7164 | O123: =O104+O106 -> 4509 | Q123: =Q104+Q106 -> 10899 | S123: =S104+S106 -> 10380 | U123: =U104+U106 -> 10380 | W123: =W104+W106 -> 7992 | Y123: =Y104+Y106 -> 4508 | AA123: =AA104+AA106 -> 6480 | AC123: =AC104+AC106 -> 6480 | AE123: =AE104+AE106 -> 1430 | AG123: =AG104+AG106 -> 1430 | AI123: =AI104+AI106 -> 6480
B124: Costo neumáticos por km | E124: =IFERROR((E90*E94/E98),0)+IFERROR((E91*E95/E99),0)+IFERROR((E92*E96/E100),0)+IFERROR((E93*E97/E101),0) -> 0.0570528 | G124: =IFERROR((G90*G94/G98),0)+IFERROR((G91*G95/G99),0)+IFERROR((G92*G96/G100),0)+IFERROR((G93*G97/G101),0) -> 0.0570528 | I124: =IFERROR((I90*I94/I98),0)+IFERROR((I91*I95/I99),0)+IFERROR((I92*I96/I100),0)+IFERROR((I93*I97/I101),0) -> 0.0665616 | K124: =IFERROR((K90*K94/K98),0)+IFERROR((K91*K95/K99),0)+IFERROR((K92*K96/K100),0)+IFERROR((K93*K97/K101),0) -> 0.0665616 | M124: =IFERROR((M90*M94/M98),0)+IFERROR((M91*M95/M99),0)+IFERROR((M92*M96/M100),0)+IFERROR((M93*M97/M101),0) -> 0.1996848 | O124: =IFERROR((O90*O94/O98),0)+IFERROR((O91*O95/O99),0)+IFERROR((O92*O96/O100),0)+IFERROR((O93*O97/O101),0) -> 0.0362952 | Q124: =IFERROR((Q90*Q94/Q98),0)+IFERROR((Q91*Q95/Q99),0)+IFERROR((Q92*Q96/Q100),0)+IFERROR((Q93*Q97/Q101),0) -> 0.0570528 | S124: =IFERROR((S90*S94/S98),0)+IFERROR((S91*S95/S99),0)+IFERROR((S92*S96/S100),0)+IFERROR((S93*S97/S101),0) -> 0.0570528 | U124: =IFERROR((U90*U94/U98),0)+IFERROR((U91*U95/U99),0)+IFERROR((U92*U96/U100),0)+IFERROR((U93*U97/U101),0) -> 0.0570528 | W124: =IFERROR((W90*W94/W98),0)+IFERROR((W91*W95/W99),0)+IFERROR((W92*W96/W100),0)+IFERROR((W93*W97/W101),0) -> 0.0570528 | Y124: =IFERROR((Y90*Y94/Y98),0)+IFERROR((Y91*Y95/Y99),0)+IFERROR((Y92*Y96/Y100),0)+IFERROR((Y93*Y97/Y101),0) -> 0.0362952 | AA124: =IFERROR((AA90*AA94/AA98),0)+IFERROR((AA91*AA95/AA99),0)+IFERROR((AA92*AA96/AA100),0)+IFERROR((AA93*AA97/AA101),0) -> 0.0570528 | AC124: =IFERROR((AC90*AC94/AC98),0)+IFERROR((AC91*AC95/AC99),0)+IFERROR((AC92*AC96/AC100),0)+IFERROR((AC93*AC97/AC101),0) -> 0.0570528 | AE124: =IFERROR((AE90*AE94/AE98),0)+IFERROR((AE91*AE95/AE99),0)+IFERROR((AE92*AE96/AE100),0)+IFERROR((AE93*AE97/AE101),0) -> 0.013838 | AG124: =IFERROR((AG90*AG94/AG98),0)+IFERROR((AG91*AG95/AG99),0)+IFERROR((AG92*AG96/AG100),0)+IFERROR((AG93*AG97/AG101),0) -> 0.013838 | AI124: =IFERROR((AI90*AI94/AI98),0)+IFERROR((AI91*AI95/AI99),0)+IFERROR((AI92*AI96/AI100),0)+IFERROR((AI93*AI97/AI101),0) -> 0.0570528

Sheet Ibilgailu-mota
C6: 1. Ibilgailu-mota hautatu
C10: Ibilgailu-mota: | E10: =VLOOKUP(F10,T!A2:B17,2,0) -> T1 | F10: Ibilbide luzeko zama arrunteko ibilgailu artikulatua
C12: Kalkulu-formularioetara gehitutako datu estatistikoekin simulazioa hasi nahi duzu?

Sheet Ibilgailuaren Ezaugarriak
C6: 1. Ibilgailuaren Ezaugarriak
C9: Ibilgailuaren ezaugarri teknikoak | L9: Datu estadistikoak | M9: =DE!$AJ$2 -> 20/06/2025
C11: Deskripzioa: | J11: =IF(HLOOKUP('Ibilgailu-mota'!$E$10,DE!$E$1:$AI$283,2,0)="","",HLOOKUP('Ibilgailu-mota'!$E$10,DE!$E$1:$AI$283,2,0)) -> Ibilbide luzeko zama arrunteko ibilgailu artikulatua | V11: 2024-01-12
C13: Potentzia: | L13: =IF(HLOOKUP('Ibilgailu-mota'!$E$10,DE!$D$1:$AI$281,4,0)="","",HLOOKUP('Ibilgailu-mota'!$E$10,DE!$D$1:$AI$281,4,0)) -> 200
C15: MMA (Tm): | L15: =IF(HLOOKUP('Ibilgailu-mota'!$E$10,DE!$D$1:$AI$281,5,0)="","",HLOOKUP('Ibilgailu-mota'!$E$10,DE!$D$1:$AI$281,5,0)) -> 41000
C17: Karga erabilgarria: | L17: =IF(HLOOKUP('Ibilgailu-mota'!$E$10,DE!$D$1:$AI$281,6,0)="","",HLOOKUP('Ibilgailu-mota'!$E$10,DE!$D$1:$AI$281,6,0)) -> 25000
C19: Ardatz-kopurua: | L19: =IF(HLOOKUP('Ibilgailu-mota'!$E$10,DE!$D$1:$AI$281,7,0)="","",HLOOKUP('Ibilgailu-mota'!$E$10,DE!$D$1:$AI$281,7,0)) -> 6
C21: Pneumatiko-kopurua: | L21: =IF(HLOOKUP('Ibilgailu-mota'!$E$10,DE!$D$1:$AI$281,8,0)="","",HLOOKUP('Ibilgailu-mota'!$E$10,DE!$D$1:$AI$281,8,0)) -> 12
C23: Ibilgailuaren ustiapen-ezaugarriak | L23: Datu estadistikoak | M23: =DE!$AJ$2 -> 20/06/2025
C25: Urtero egindako kilometroak | L25: =IF(HLOOKUP('Ibilgailu-mota'!$E$10,DE!$D$1:$AI$281,9,0)="","",HLOOKUP('Ibilgailu-mota'!$E$10,DE!$D$1:$AI$281,9,0)) -> 150000
C27: Urtean zamarekin egindako kilometroak (%,km) € | I27: % | J27: =ROUND(J25*H27/100,2) -> 0 | K27: =IF(HLOOKUP(CONCATENATE('Ibilgailu-mota'!$E$10,"A"),DE!$D$1:$AI$281,10,0)="","",HLOOKUP(CONCATENATE('Ibilgailu-mota'!$E$10,"A"),DE!$D$1:$AI$281,10,0)) -> 90 | L27: =IF(HLOOKUP('Ibilgailu-mota'!$E$10,DE!$D$1:$AI$281,10,0)="","",HLOOKUP('Ibilgailu-mota'!$E$10,DE!$D$1:$AI$281,10,0)) -> 135000
C29: Urtero hutsik egindako kilometroak (%,km) € | H29: =100-H27 -> 100 | I29: % | J29: =ROUND(J25-J27,2) -> 0 | K29: =IF(HLOOKUP(CONCATENATE('Ibilgailu-mota'!$E$10,"A"),DE!$D$1:$AI$281,11,0)="","",HLOOKUP(CONCATENATE('Ibilgailu-mota'!$E$10,"A"),DE!$D$1:$AI$281,11,0)) -> 10 | L29: =IF(HLOOKUP('Ibilgailu-mota'!$E$10,DE!$D$1:$AI$281,11,0)="","",HLOOKUP('Ibilgailu-mota'!$E$10,DE!$D$1:$AI$281,11,0)) -> 15000
C31: Batez besteko kontsumoa (litro/100km) | L31: =IF(HLOOKUP('Ibilgailu-mota'!$E$10,DE!$D$1:$AI$281,12,0)="","",HLOOKUP('Ibilgailu-mota'!$E$10,DE!$D$1:$AI$281,12,0)) -> 35
C33: Urtean lanean emandako orduak | L33: =IF(HLOOKUP('Ibilgailu-mota'!$E$10,DE!$D$1:$AI$281,13,0)="","",HLOOKUP('Ibilgailu-mota'!$E$10,DE!$D$1:$AI$281,13,0)) -> 2000
C35: Uretan lanean zamarekin emandako orduak (%,h) | I35: % | J35: =ROUND(J33*H35/100,2) -> 0 | K35: =IF(HLOOKUP(CONCATENATE('Ibilgailu-mota'!$E$10,"A"),DE!$D$1:$AI$281,14,0)="","",HLOOKUP(CONCATENATE('Ibilgailu-mota'!$E$10,"A"),DE!$D$1:$AI$281,14,0)) -> 90 | L35: =IF(HLOOKUP('Ibilgailu-mota'!$E$10,DE!$D$1:$AI$281,14,0)="","",HLOOKUP('Ibilgailu-mota'!$E$10,DE!$D$1:$AI$281,14,0)) -> 1800
C37: Urtean lanean hutsik emandako orduak (%,h) | H37: =100-H35 -> 100 | I37: % | J37: =J33-J35 -> 0 | K37: =IF(HLOOKUP(CONCATENATE('Ibilgailu-mota'!$E$10,"A"),DE!$D$1:$AI$281,15,0)="","",HLOOKUP(CONCATENATE('Ibilgailu-mota'!$E$10,"A"),DE!$D$1:$AI$281,15,0)) -> 10 | L37: =IF(HLOOKUP('Ibilgailu-mota'!$E$10,DE!$D$1:$AI$281,15,0)="","",HLOOKUP('Ibilgailu-mota'!$E$10,DE!$D$1:$AI$281,15,0)) -> 200
C39: Urtean betetako lan-egunak | L39: =IF(HLOOKUP('Ibilgailu-mota'!$E$10,DE!$D$1:$AI$281,16,0)="","",HLOOKUP('Ibilgailu-mota'!$E$10,DE!$D$1:$AI$281,16,0)) -> 250
C41: Jardunaldi bakoitzeko sartutako orduak | J41: =IFERROR(ROUND(J33/J39,0),0) -> 0 | L41: =IF(HLOOKUP('Ibilgailu-mota'!$E$10,DE!$D$1:$AI$281,17,0)="","",HLOOKUP('Ibilgailu-mota'!$E$10,DE!$D$1:$AI$281,17,0)) -> 8

Sheet Erosketa kostuak
C6: 2. Erosketa kostuak
C9: Trakziozko Ibilgailua | J9: Datu estadistikoak | K9: =DE!$AJ$2 -> 20/06/2025
J10: =IF(HLOOKUP('Ibilgailu-mota'!$E$10,DE!$D$1:$AX$283,3,0)="","",HLOOKUP('Ibilgailu-mota'!$E$10,DE!$D$1:$AX$283,3,0)) -> 0.0561
C11: Erosteko modua: | H11: EROSKETA
C13: Leasinga edo urteko errenta ordainduz (€) | H13: 0 | J13: =IF(HLOOKUP('Ibilgailu-mota'!$E$10,DE!$D$1:$AI$281,18,0)="","",HLOOKUP('Ibilgailu-mota'!$E$10,DE!$D$1:$AI$281,18,0)) -> 0
C15: Trakziozko ibilgailuaren erosketa (€)
C17: Tarifako prezioa BEZ gabe (€) | J17: =IF(HLOOKUP('Ibilgailu-mota'!$E$10,DE!$D$1:$AI$281,19,0)="","",HLOOKUP('Ibilgailu-mota'!$E$10,DE!$D$1:$AI$281,19,0)) -> 128243.27
C19: Tarifa gaineko deskontua (%) | J19: =IF(HLOOKUP('Ibilgailu-mota'!$E$10,DE!$D$1:$AI$281,20,0)="","",HLOOKUP('Ibilgailu-mota'!$E$10,DE!$D$1:$AI$281,20,0)) -> 10
C21: Erosketa-prezioa BEZ gabe (€) | H21: =ROUND((1-H19/100)*H17,0) -> 0 | J21: =IF(HLOOKUP('Ibilgailu-mota'!$E$10,DE!$D$1:$AI$281,21,0)="","",HLOOKUP('Ibilgailu-mota'!$E$10,DE!$D$1:$AI$281,21,0)) -> 115419
C23: Bizitza teknikoa (urteak) | J23: =IF(HLOOKUP('Ibilgailu-mota'!$E$10,DE!$D$1:$AI$281,22,0)="","",HLOOKUP('Ibilgailu-mota'!$E$10,DE!$D$1:$AI$281,22,0)) -> 5
C25: Tarifako prezioaren gaineko hondar-balioa (%) | J25: =IF(HLOOKUP(CONCATENATE('Ibilgailu-mota'!$E$10,"A"),DE!$D$1:$AI$281,23,0)="","",HLOOKUP(CONCATENATE('Ibilgailu-mota'!$E$10,"A"),DE!$D$1:$AI$281,23,0)) -> 15
C27: Hondar-balioa BEZ gabe (€) | H27: =ROUND(H25/100*H17,0) -> 0 | J27: =IF(HLOOKUP('Ibilgailu-mota'!$E$10,DE!$D$1:$AI$281,23,0)="","",HLOOKUP('Ibilgailu-mota'!$E$10,DE!$D$1:$AI$281,23,0)) -> 19236
C29: TRAKZIOZKO IBILGAILUAREN AMORTIZAZIOA | H29: =ROUND(IFERROR(IF(H11=T!F2,ROUND((H21-H27-('Kostu aldakorrak'!J$71))*(1/H23),2),0),0),0) -> 0 | J29: =IF(HLOOKUP('Ibilgailu-mota'!$E$10,DE!$D$1:$AI$281,24,0)="","",HLOOKUP('Ibilgailu-mota'!$E$10,DE!$D$1:$AI$281,24,0)) -> 17525
C31: TRAKZIOZKO IBILGAILUAREN FINANTZA GASTUAK | H31: =ROUND(IFERROR(IF(H11=T!F2,ROUND((H21-H27-('Kostu aldakorrak'!J$71))*(-(1/H23)+J$10/(1-POWER(1+J$10,-H23))),2),0),0),0) -> 0 | J31: =IF(HLOOKUP('Ibilgailu-mota'!$E$10,DE!$D$1:$AI$281,25,0)="","",HLOOKUP('Ibilgailu-mota'!$E$10,DE!$D$1:$AI$281,25,0)) -> 3057
C33: Ibilgailuari karrozeria jartzea | J33: Datu estadistikoak | K33: =DE!$AJ$2 -> 20/06/2025
C35: Erosteko modua: | H35: EROSKETA
C37: Leasinga edo urteko errenta ordainduz (€) | J37: =IF(HLOOKUP('Ibilgailu-mota'!$E$10,DE!$D$1:$AI$281,26,0)="","",HLOOKUP('Ibilgailu-mota'!$E$10,DE!$D$1:$AI$281,26,0)) -> 
C39: Compra carrozado (€)
C41: Tarifako prezioa BEZ gabe (€) | J41: =IF(HLOOKUP('Ibilgailu-mota'!$E$10,DE!$D$1:$AI$281,27,0)="","",HLOOKUP('Ibilgailu-mota'!$E$10,DE!$D$1:$AI$281,27,0)) -> 
C43: Tarifa gaineko deskontua (%) | J43: =IF(HLOOKUP('Ibilgailu-mota'!$E$10,DE!$D$1:$AI$281,28,0)="","",HLOOKUP('Ibilgailu-mota'!$E$10,DE!$D$1:$AI$281,28,0)) -> 
C45: Erosketa-prezioa BEZ gabe (€) | H45: =(1-H43/100)*H41 -> 0 | J45: =IF(HLOOKUP('Ibilgailu-mota'!$E$10,DE!$D$1:$AI$281,29,0)="","",HLOOKUP('Ibilgailu-mota'!$E$10,DE!$D$1:$AI$281,29,0)) -> 
C47: Bizitza teknikoa (urteak) | J47: =IF(HLOOKUP('Ibilgailu-mota'!$E$10,DE!$D$1:$AI$281,30,0)="","",HLOOKUP('Ibilgailu-mota'!$E$10,DE!$D$1:$AI$281,30,0)) -> 
C49: Tarifako prezioaren gaineko hondar-balioa (%) | J49: =IF(HLOOKUP(CONCATENATE('Ibilgailu-mota'!$E$10,"A"),DE!$D$1:$AI$281,31,0)="","",HLOOKUP(CONCATENATE('Ibilgailu-mota'!$E$10,"A"),DE!$D$1:$AI$281,31,0)) -> 
C51: Hondar-balio BEZ gabe (€) | H51: =ROUND(H49/100*H41,0) -> 0 | J51: =IF(HLOOKUP('Ibilgailu-mota'!$E$10,DE!$D$1:$AI$281,31,0)="","",HLOOKUP('Ibilgailu-mota'!$E$10,DE!$D$1:$AI$281,31,0)) -> 
C53: KARROZERIAREN AMORTIZAZIOA | H53: =ROUND(IFERROR(IF(H35=T!F2,ROUND((H45-H51)*(1/H47),2),0),0),0) -> 0 | J53: =IF(HLOOKUP('Ibilgailu-mota'!$E$10,DE!$D$1:$AI$281,32,0)="","",HLOOKUP('Ibilgailu-mota'!$E$10,DE!$D$1:$AI$281,32,0)) -> 
C55: KARROZERIAREN FINANTZA GASTUAK | H55: =ROUND(IFERROR(IF(H35=T!F2,ROUND((H45-H51)*(-(1/H47)+J$10/(1-POWER(1+J$10,-H47))),2),0),0),0) -> 0 | J55: =IF(HLOOKUP('Ibilgailu-mota'!$E$10,DE!$D$1:$AI$281,33,0)="","",HLOOKUP('Ibilgailu-mota'!$E$10,DE!$D$1:$AI$281,33,0)) -> 
C57: Erdi-atoia edo atoia | J57: Datu estadistikoak | K57: =DE!$AJ$2 -> 20/06/2025
C59: Erosteko modua: | H59: EROSKETA
C61: Leasinga edo urteko errenta ordainduz (€) | J61: =IF(HLOOKUP('Ibilgailu-mota'!$E$10,DE!$D$1:$AI$281,34,0)="","",HLOOKUP('Ibilgailu-mota'!$E$10,DE!$D$1:$AI$281,34,0)) -> 0
C63: Atoi edo erdi-atoiaren erosketa (€)
C65: Tarifako prezioa BEZ gabe (€) | J65: =IF(HLOOKUP('Ibilgailu-mota'!$E$10,DE!$D$1:$AI$281,35,0)="","",HLOOKUP('Ibilgailu-mota'!$E$10,DE!$D$1:$AI$281,35,0)) -> 39874.33
C67: Tarifa gaineko deskontua (%) | J67: =IF(HLOOKUP('Ibilgailu-mota'!$E$10,DE!$D$1:$AI$281,36,0)="","",HLOOKUP('Ibilgailu-mota'!$E$10,DE!$D$1:$AI$281,36,0)) -> 5
C69: Erosketa-prezioa BEZ gabe (€) | H69: =(1-H67/100)*H65 -> 0 | J69: =IF(HLOOKUP('Ibilgailu-mota'!$E$10,DE!$D$1:$AI$281,37,0)="","",HLOOKUP('Ibilgailu-mota'!$E$10,DE!$D$1:$AI$281,37,0)) -> 37881
C71: Bizitza teknikoa (urteak) | J71: =IF(HLOOKUP('Ibilgailu-mota'!$E$10,DE!$D$1:$AI$281,38,0)="","",HLOOKUP('Ibilgailu-mota'!$E$10,DE!$D$1:$AI$281,38,0)) -> 7
C73: Tarifako prezioaren gaineko hondar-balioa (%) | J73: =IF(HLOOKUP(CONCATENATE('Ibilgailu-mota'!$E$10,"A"),DE!$D$1:$AI$281,39,0)="","",HLOOKUP(CONCATENATE('Ibilgailu-mota'!$E$10,"A"),DE!$D$1:$AI$281,39,0)) -> 10
C75: Hondar-balio BEZ gabe (€) | H75: =ROUND(H73/100*H65,0) -> 0 | J75: =IF(HLOOKUP('Ibilgailu-mota'!$E$10,DE!$D$1:$AI$281,39,0)="","",HLOOKUP('Ibilgailu-mota'!$E$10,DE!$D$1:$AI$281,39,0)) -> 3987
C77: ATORIAREN AMORTIZAZIOA | H77: =ROUND(IFERROR(IF(H59=T!F2,ROUND((H69-H75-('Kostu aldakorrak'!J53*'Kostu aldakorrak'!J61))*(1/H71),2),0),0),0) -> 0 | J77: =IF(HLOOKUP('Ibilgailu-mota'!$E$10,DE!$D$1:$AI$281,40,0)="","",HLOOKUP('Ibilgailu-mota'!$E$10,DE!$D$1:$AI$281,40,0)) -> 4231
C79: ATORIAREN FINANTZA GASTUAK | H79: =ROUND(IFERROR(IF(H59=T!F2,ROUND((H69-H75-('Kostu aldakorrak'!J$53*'Kostu aldakorrak'!J$61))*(-(1/H71)+J$10/(1-POWER(1+J$10,-H71))),2),0),0),0) -> 0 | J79: =IF(HLOOKUP('Ibilgailu-mota'!$E$10,DE!$D$1:$AI$281,41,0)="","",HLOOKUP('Ibilgailu-mota'!$E$10,DE!$D$1:$AI$281,41,0)) -> 1001
C81: Ekipo osagarriak | J81: Datu estadistikoak | K81: =DE!$AJ$2 -> 20/06/2025
C83: Erosteko modua: | H83: EROSKETA
C85: Leasinga edo urteko errenta ordainduz (€) | J85: =IF(HLOOKUP('Ibilgailu-mota'!$E$10,DE!$D$1:$AI$281,42,0)="","",HLOOKUP('Ibilgailu-mota'!$E$10,DE!$D$1:$AI$281,42,0)) -> 
C87: Compra de los equipos (€)
C89: Tarifako prezioa BEZ gabe (€) | J89: =IF(HLOOKUP('Ibilgailu-mota'!$E$10,DE!$D$1:$AI$281,43,0)="","",HLOOKUP('Ibilgailu-mota'!$E$10,DE!$D$1:$AI$281,43,0)) -> 
C91: Tarifa gaineko deskontua (%) | J91: =IF(HLOOKUP('Ibilgailu-mota'!$E$10,DE!$D$1:$AI$281,44,0)="","",HLOOKUP('Ibilgailu-mota'!$E$10,DE!$D$1:$AI$281,44,0)) -> 
C93: Erosketa-prezioa BEZ gabe (€) | H93: =(1-H91/100)*H89 -> 0 | J93: =IF(HLOOKUP('Ibilgailu-mota'!$E$10,DE!$D$1:$AI$281,45,0)="","",HLOOKUP('Ibilgailu-mota'!$E$10,DE!$D$1:$AI$281,45,0)) -> 
C95: Bizitza teknikoa (urteak) | J95: =IF(HLOOKUP('Ibilgailu-mota'!$E$10,DE!$D$1:$AI$281,46,0)="","",HLOOKUP('Ibilgailu-mota'!$E$10,DE!$D$1:$AI$281,46,0)) -> 
C97: Tarifako prezioaren gaineko hondar-balioa (%) | J97: =IF(HLOOKUP(CONCATENATE('Ibilgailu-mota'!$E$10,"A"),DE!$D$1:$AI$281,47,0)="","",HLOOKUP(CONCATENATE('Ibilgailu-mota'!$E$10,"A"),DE!$D$1:$AI$281,47,0)) -> 
C99: Hondar-balio BEZ gabe (€) | H99: =H97/100*H89 -> 0 | J99: =IF(HLOOKUP('Ibilgailu-mota'!$E$10,DE!$D$1:$AI$281,47,0)="","",HLOOKUP('Ibilgailu-mota'!$E$10,DE!$D$1:$AI$281,47,0)) -> 
C101: EKIPOEN AMORTIZAZIOA | H101: =IFERROR(IF(H83=T!F2,ROUND((H93-H99)*(1/H95),2),0),0) -> 0 | J101: =IF(HLOOKUP('Ibilgailu-mota'!$E$10,DE!$D$1:$AI$281,48,0)="","",HLOOKUP('Ibilgailu-mota'!$E$10,DE!$D$1:$AI$281,48,0)) -> 
C103: EKIPOEN FINANTZA GASTUAK | H103: =IFERROR(IF(H83=T!F2,ROUND((H93-H99)*(-(1/H95)+J$10/(1-POWER(1+J$10,-H95))),2),0),0) -> 0 | J103: =IF(HLOOKUP('Ibilgailu-mota'!$E$10,DE!$D$1:$AI$281,49,0)="","",HLOOKUP('Ibilgailu-mota'!$E$10,DE!$D$1:$AI$281,49,0)) -> 
C105: EROSKETA KOSTUAK | H105: =ROUND(H13+H29+H31+H37+H53+H55+H61+H77+H79+H85+H101+H103,0) -> 0 | J105: =IF(HLOOKUP('Ibilgailu-mota'!$E$10,DE!$D$1:$AI$281,50,0)="","",HLOOKUP('Ibilgailu-mota'!$E$10,DE!$D$1:$AI$281,50,0)) -> 25814

Sheet Pertsonal-kostuak
C6: 3. Pertsonal-kostuak
C9: Pertsonal-kostuak | J9: Datu estadistikoak | K9: =DE!$AJ$2 -> 20/06/2025
C11: Gidariaren urteko kostua guztira, enpresa-kostuak barne (Gizarte Seg. eta abar) € | J11: =IF(HLOOKUP('Ibilgailu-mota'!$E$10,DE!$D$1:$AI$281,51,0)="","",HLOOKUP('Ibilgailu-mota'!$E$10,DE!$D$1:$AI$281,51,0)) -> 37649.7
C13: Gidariaren eguneko dieta guztira (€/eguneko) | J13: =IF(HLOOKUP('Ibilgailu-mota'!$E$10,DE!$D$1:$AI$281,52,0)="","",HLOOKUP('Ibilgailu-mota'!$E$10,DE!$D$1:$AI$281,52,0)) -> 84.2
C15: Urteko dieta egun-kopurua | J15: =IF(HLOOKUP('Ibilgailu-mota'!$E$10,DE!$D$1:$AI$281,53,0)="","",HLOOKUP('Ibilgailu-mota'!$E$10,DE!$D$1:$AI$281,53,0)) -> 250
C17: Urteko dieta guztiak (€) | H17: =H15*H13 -> 0 | J17: =IF(HLOOKUP('Ibilgailu-mota'!$E$10,DE!$D$1:$AI$281,54,0)="","",HLOOKUP('Ibilgailu-mota'!$E$10,DE!$D$1:$AI$281,54,0)) -> 21050
C19: Gidariaren urteko jarduera-plusa (€/km) | J19: =IF(HLOOKUP('Ibilgailu-mota'!$E$10,DE!$D$1:$AI$281,55,0)="","",HLOOKUP('Ibilgailu-mota'!$E$10,DE!$D$1:$AI$281,55,0)) -> 0.064
C21: Gidariaren urteko jarduera-plusa (€) | H21: =H19*'Ibilgailuaren Ezaugarriak'!J25 -> 0 | J21: =IF(HLOOKUP('Ibilgailu-mota'!$E$10,DE!$D$1:$AI$281,56,0)="","",HLOOKUP('Ibilgailu-mota'!$E$10,DE!$D$1:$AI$281,56,0)) -> 9600
C23: PERTSONAL KOSTUAK | H23: =H11+H17+H21 -> 0 | J23: =IF(HLOOKUP('Ibilgailu-mota'!$E$10,DE!$D$1:$AI$281,57,0)="","",HLOOKUP('Ibilgailu-mota'!$E$10,DE!$D$1:$AI$281,57,0)) -> 68299.7

Sheet Aseguruak eta zerga arloko kost
C6: 4. Aseguruak eta zerga arloko kostuak
C9: Seguros | J9: Datu estadistikoak | K9: =DE!$AJ$2 -> 20/06/2025
C11: Responsabilidad civil del vehículo de tracción (€) | J11: =IF(HLOOKUP('Ibilgailu-mota'!$E$10,DE!$D$1:$AI$281,58,0)="","",HLOOKUP('Ibilgailu-mota'!$E$10,DE!$D$1:$AI$281,58,0)) -> 1696.86
C13: Responsabilidad civil del remolque o semirremolque (€) | J13: =IF(HLOOKUP('Ibilgailu-mota'!$E$10,DE!$D$1:$AI$281,59,0)="","",HLOOKUP('Ibilgailu-mota'!$E$10,DE!$D$1:$AI$281,59,0)) -> 535.32
C15: Responsabilidad civil de la mercancía (€) | J15: =IF(HLOOKUP('Ibilgailu-mota'!$E$10,DE!$D$1:$AI$281,60,0)="","",HLOOKUP('Ibilgailu-mota'!$E$10,DE!$D$1:$AI$281,60,0)) -> 127.19
C17: Accidente del conductor (€) | J17: =IF(HLOOKUP('Ibilgailu-mota'!$E$10,DE!$D$1:$AI$281,61,0)="","",HLOOKUP('Ibilgailu-mota'!$E$10,DE!$D$1:$AI$281,61,0)) -> 59.04
C19: Retirada del carné de conducir (€) | J19: =IF(HLOOKUP('Ibilgailu-mota'!$E$10,DE!$D$1:$AI$281,62,0)="","",HLOOKUP('Ibilgailu-mota'!$E$10,DE!$D$1:$AI$281,62,0)) -> 146.95
C21: Seguro de la mercancía (€) | J21: =IF(HLOOKUP('Ibilgailu-mota'!$E$10,DE!$D$1:$AI$281,63,0)="","",HLOOKUP('Ibilgailu-mota'!$E$10,DE!$D$1:$AI$281,63,0)) -> 720
C23: Daños propios (seguro todo riesgo) (€) | J23: =IF(HLOOKUP('Ibilgailu-mota'!$E$10,DE!$D$1:$AI$281,64,0)="","",HLOOKUP('Ibilgailu-mota'!$E$10,DE!$D$1:$AI$281,64,0)) -> 3171.47
C25: Otros seguros (€) | J25: =IF(HLOOKUP('Ibilgailu-mota'!$E$10,DE!$D$1:$AI$281,65,0)="","",HLOOKUP('Ibilgailu-mota'!$E$10,DE!$D$1:$AI$281,65,0)) -> 508.22
C27: COSTE TOTAL ANUAL DE LOS SEGUROS (€) | H27: =H11+H13+H15+H17+H19+H21+H23+H25 -> 0 | J27: =IF(HLOOKUP('Ibilgailu-mota'!$E$10,DE!$D$1:$AI$281,66,0)="","",HLOOKUP('Ibilgailu-mota'!$E$10,DE!$D$1:$AI$281,66,0)) -> 6965.05
C29: Costes fiscales | J29: Datu estadistikoak | K29: =DE!$AJ$2 -> 20/06/2025
C31: Visados | J31: =IF(HLOOKUP('Ibilgailu-mota'!$E$10,DE!$D$1:$AI$281,67,0)="","",HLOOKUP('Ibilgailu-mota'!$E$10,DE!$D$1:$AI$281,67,0)) -> 16.91
C33: Inspección técnica de vehículos (I.T.V.) | J33: =IF(HLOOKUP('Ibilgailu-mota'!$E$10,DE!$D$1:$AI$281,68,0)="","",HLOOKUP('Ibilgailu-mota'!$E$10,DE!$D$1:$AI$281,68,0)) -> 115.84
C35: Impuesto de actividades económicas (I.A.E.) repercutible a este vehículo | J35: =IF(HLOOKUP('Ibilgailu-mota'!$E$10,DE!$D$1:$AI$281,69,0)="","",HLOOKUP('Ibilgailu-mota'!$E$10,DE!$D$1:$AI$281,69,0)) -> 366.46
C37: Impuesto de Vehículos de Tracción Mecánica (I.T.V.M.) | J37: =IF(HLOOKUP('Ibilgailu-mota'!$E$10,DE!$D$1:$AI$281,70,0)="","",HLOOKUP('Ibilgailu-mota'!$E$10,DE!$D$1:$AI$281,70,0)) -> 315.48
C39: Revisión tacógrafo | J39: =IF(HLOOKUP('Ibilgailu-mota'!$E$10,DE!$D$1:$AI$281,71,0)="","",HLOOKUP('Ibilgailu-mota'!$E$10,DE!$D$1:$AI$281,71,0)) -> 85.22
C41: Inspecciones A.T.P. (transporte mercancías perecederas) | J41: =IF(HLOOKUP('Ibilgailu-mota'!$E$10,DE!$D$1:$AI$281,72,0)="","",HLOOKUP('Ibilgailu-mota'!$E$10,DE!$D$1:$AI$281,72,0)) -> 
C43: Inspecciones A.D.R. (transporte mercancías peligrosas) | J43: =IF(HLOOKUP('Ibilgailu-mota'!$E$10,DE!$D$1:$AI$281,73,0)="","",HLOOKUP('Ibilgailu-mota'!$E$10,DE!$D$1:$AI$281,73,0)) -> 
C45: Otros costes fiscales | J45: =IF(HLOOKUP('Ibilgailu-mota'!$E$10,DE!$D$1:$AI$281,74,0)="","",HLOOKUP('Ibilgailu-mota'!$E$10,DE!$D$1:$AI$281,74,0)) -> 29.76
C47: COSTE FISCAL TOTAL ANUAL | H47: =H31+H33+H35+H37+H39+H41+H43+H45 -> 0 | J47: =IF(HLOOKUP('Ibilgailu-mota'!$E$10,DE!$D$1:$AI$281,75,0)="","",HLOOKUP('Ibilgailu-mota'!$E$10,DE!$D$1:$AI$281,75,0)) -> 929.67
C49: SEGUROS Y COSTES FISCALES | H49: =H27+H47 -> 0 | J49: =IF(HLOOKUP('Ibilgailu-mota'!$E$10,DE!$D$1:$AI$281,76,0)="","",HLOOKUP('Ibilgailu-mota'!$E$10,DE!$D$1:$AI$281,76,0)) -> 7894.72

Sheet Kostu aldakorrak
C6: 5. Kostu aldakorrak
C9: Ibilgailuaren erregaia | L9: Datu estadistikoak | M9: =DE!$AJ$2 -> 20/06/2025
C11: Erregaiaren prezioa BEZ barne (€/litroko) | L11: =IF(HLOOKUP('Ibilgailu-mota'!$E$10,DE!$D$1:$AI$281,77,0)="","",HLOOKUP('Ibilgailu-mota'!$E$10,DE!$D$1:$AI$281,77,0)) -> 2.123
C13: Deskontua (€/litroko) | L13: =IF(HLOOKUP('Ibilgailu-mota'!$E$10,DE!$D$1:$AI$281,78,0)="","",HLOOKUP('Ibilgailu-mota'!$E$10,DE!$D$1:$AI$281,78,0)) -> 0.1159
C15: Erregaiari aplikatutako BEZa (€/litroKO) | I15: % | J15: =IFERROR(ROUND((H15/100)*(J11-J13)/(1+H15/100),4),0) -> 0 | K15: =IF(HLOOKUP(CONCATENATE('Ibilgailu-mota'!$E$10,"A"),DE!$D$1:$AI$281,79,0)="","",HLOOKUP(CONCATENATE('Ibilgailu-mota'!$E$10,"A"),DE!$D$1:$AI$281,79,0)) -> 21 | L15: =IF(HLOOKUP('Ibilgailu-mota'!$E$10,DE!$D$1:$AI$281,79,0)="","",HLOOKUP('Ibilgailu-mota'!$E$10,DE!$D$1:$AI$281,79,0)) -> 0.3483
C17: Erregaiaren prezioa BEZ gabe (€/litroko) | J17: =IFERROR(ROUND((J11-J13)/(1+H15/100),4),0) -> 0 | L17: =IF(HLOOKUP('Ibilgailu-mota'!$E$10,DE!$D$1:$AI$281,80,0)="","",HLOOKUP('Ibilgailu-mota'!$E$10,DE!$D$1:$AI$281,80,0)) -> 1.6588
C19: IBILGAILUAREN ERREGAIAN URTEAN GUZTIRA GASTATUTAKOA (€) | J19: =IFERROR(ROUND(('Ibilgailuaren Ezaugarriak'!J25/100)*'Ibilgailuaren Ezaugarriak'!J31*J17,0),0) -> 0 | L19: =IF(HLOOKUP('Ibilgailu-mota'!$E$10,DE!$D$1:$AI$281,81,0)="","",HLOOKUP('Ibilgailu-mota'!$E$10,DE!$D$1:$AI$281,81,0)) -> 87087
C21: Carburante de los equipos | L21: Datu estadistikoak | M21: =DE!$AJ$2 -> 20/06/2025
C23: Precio de compra de carburante | L23: =IF(HLOOKUP('Ibilgailu-mota'!$E$10,DE!$D$1:$AI$281,82,0)="","",HLOOKUP('Ibilgailu-mota'!$E$10,DE!$D$1:$AI$281,82,0)) -> 
J24: 35
C25: Deskontua (€) | L25: =IF(HLOOKUP('Ibilgailu-mota'!$E$10,DE!$D$1:$AI$281,83,0)="","",HLOOKUP('Ibilgailu-mota'!$E$10,DE!$D$1:$AI$281,83,0)) -> 
C27: IVA aplicado al carburante (%) (€/litro) | K27: =IF(HLOOKUP(CONCATENATE('Ibilgailu-mota'!$E$10,"A"),DE!$D$1:$AI$281,88,0)="","",HLOOKUP(CONCATENATE('Ibilgailu-mota'!$E$10,"A"),DE!$D$1:$AI$281,88,0)) ->  | L27: =IF(HLOOKUP('Ibilgailu-mota'!$E$10,DE!$D$1:$AI$281,84,0)="","",HLOOKUP('Ibilgailu-mota'!$E$10,DE!$D$1:$AI$281,84,0)) -> 
C29: IVA aplicado al carburante (€/litro) | J29: =IFERROR(ROUND((J27/100)*(J23-J25)/(1+J27/100),4),0) -> 0 | L29: =IF(HLOOKUP('Ibilgailu-mota'!$E$10,DE!$D$1:$AI$281,85,0)="","",HLOOKUP('Ibilgailu-mota'!$E$10,DE!$D$1:$AI$281,85,0)) -> 
C31: Precio carburante sin IVA (€/litro) | J31: =ROUND((J23-J25)/(1+J27/100),4) -> 0 | L31: =IF(HLOOKUP('Ibilgailu-mota'!$E$10,DE!$D$1:$AI$281,86,0)="","",HLOOKUP('Ibilgailu-mota'!$E$10,DE!$D$1:$AI$281,86,0)) -> 
C33: Consumo medio de los equipos (litros/hora) | L33: =IF(HLOOKUP('Ibilgailu-mota'!$E$10,DE!$D$1:$AI$281,87,0)="","",HLOOKUP('Ibilgailu-mota'!$E$10,DE!$D$1:$AI$281,87,0)) -> 
C35: Horas anuales de utilización de los equipos | L35: =IF(HLOOKUP('Ibilgailu-mota'!$E$10,DE!$D$1:$AI$281,88,0)="","",HLOOKUP('Ibilgailu-mota'!$E$10,DE!$D$1:$AI$281,88,0)) -> 
C37: GASTO TOTAL ANUAL EN CARBURANTE EQUIPOS | J37: =J31*J33*J35 -> 0 | L37: =IF(HLOOKUP('Ibilgailu-mota'!$E$10,DE!$D$1:$AI$281,89,0)="","",HLOOKUP('Ibilgailu-mota'!$E$10,DE!$D$1:$AI$281,89,0)) -> 
C39: Urea disoluzioaren kontsumoagatiko urteko kostua | L39: Datu estadistikoak | M39: =DE!$AJ$2 -> 20/06/2025
C41: UREA DISOLUZIOARENU KONTSUMOAGATIKO URTEKO KOSTUA (€, BEZ gabe) | L41: =IF(HLOOKUP('Ibilgailu-mota'!$E$10,DE!$D$1:$AI$281,114,0)="","",HLOOKUP('Ibilgailu-mota'!$E$10,DE!$D$1:$AI$281,114,0)) -> 2500.16
C43: Urea disoluzioaren kontsumoagatiko urteko kostua (€/km, BEZ gabe) | J43: =IFERROR(J41/'Ibilgailuaren Ezaugarriak'!J25,0) -> 0 | L43: =IFERROR(L41/'Ibilgailuaren Ezaugarriak'!L25,0) -> 0.01666773333
C45: Urtean pneumatikoetan gastatutakoa | L45: Datu estadistikoak | M45: =DE!$AJ$2 -> 20/06/2025
C47: Norabidezko pneumatiko-kopurua | L47: =IF(HLOOKUP('Ibilgailu-mota'!$E$10,DE!$D$1:$AI$281,90,0)="","",HLOOKUP('Ibilgailu-mota'!$E$10,DE!$D$1:$AI$281,90,0)) -> 2
C49: Pneumatiko eragile-kopurua | L49: =IF(HLOOKUP('Ibilgailu-mota'!$E$10,DE!$D$1:$AI$281,91,0)="","",HLOOKUP('Ibilgailu-mota'!$E$10,DE!$D$1:$AI$281,91,0)) -> 4
C51: Número de neumáticos arrastre | L51: =IF(HLOOKUP('Ibilgailu-mota'!$E$10,DE!$D$1:$AI$281,92,0)="","",HLOOKUP('Ibilgailu-mota'!$E$10,DE!$D$1:$AI$281,92,0)) -> 
C53: Erdi-atoi edo atoiko pneumatiko-kopurua | L53: =IF(HLOOKUP('Ibilgailu-mota'!$E$10,DE!$D$1:$AI$281,93,0)="","",HLOOKUP('Ibilgailu-mota'!$E$10,DE!$D$1:$AI$281,93,0)) -> 6
C55: Norabidezko pneumatiko baten prezioa BEZ gabe (€) | L55: =IF(HLOOKUP('Ibilgailu-mota'!$E$10,DE!$D$1:$AI$281,94,0)="","",HLOOKUP('Ibilgailu-mota'!$E$10,DE!$D$1:$AI$281,94,0)) -> 713.16
C57: Pneumatiko eragile bat prezioa BEZ gabe (€) | L57: =IF(HLOOKUP('Ibilgailu-mota'!$E$10,DE!$D$1:$AI$281,95,0)="","",HLOOKUP('Ibilgailu-mota'!$E$10,DE!$D$1:$AI$281,95,0)) -> 713.16
C59: Precio sin IVA de un neumático arrastre (€) | L59: =IF(HLOOKUP('Ibilgailu-mota'!$E$10,DE!$D$1:$AI$281,96,0)="","",HLOOKUP('Ibilgailu-mota'!$E$10,DE!$D$1:$AI$281,96,0)) -> 
C61: Atoi edo erdi-atoiko pneumatiko baten prezioa BEZ gabe (€) | L61: =IF(HLOOKUP('Ibilgailu-mota'!$E$10,DE!$D$1:$AI$281,97,0)="","",HLOOKUP('Ibilgailu-mota'!$E$10,DE!$D$1:$AI$281,97,0)) -> 713.16
C63: Norabidezko pneumatiko baten batez besteko iraunaldia (km) | L63: =IF(HLOOKUP('Ibilgailu-mota'!$E$10,DE!$D$1:$AI$281,98,0)="","",HLOOKUP('Ibilgailu-mota'!$E$10,DE!$D$1:$AI$281,98,0)) -> 150000
C65: Pneumatiko eragile baten batez besteko iraunaldia (km) | L65: =IF(HLOOKUP('Ibilgailu-mota'!$E$10,DE!$D$1:$AI$281,99,0)="","",HLOOKUP('Ibilgailu-mota'!$E$10,DE!$D$1:$AI$281,99,0)) -> 150000
C67: Duración media de un neumático arrastre (km) | L67: =IF(HLOOKUP('Ibilgailu-mota'!$E$10,DE!$D$1:$AI$281,100,0)="","",HLOOKUP('Ibilgailu-mota'!$E$10,DE!$D$1:$AI$281,100,0)) -> 
C69: Atoi edo erdi-atoiko pneumatiko baten batez besteko iraunaldia (km) | L69: =IF(HLOOKUP('Ibilgailu-mota'!$E$10,DE!$D$1:$AI$281,101,0)="","",HLOOKUP('Ibilgailu-mota'!$E$10,DE!$D$1:$AI$281,101,0)) -> 150000
C71: URTEAN GUZTIRA PNEUMATIKOETAN GASTATUTAKOA (€) | J71: =ROUND(IFERROR((J47*J55*'Ibilgailuaren Ezaugarriak'!J25/J63),0)+IFERROR((J49*J57*'Ibilgailuaren Ezaugarriak'!J25/J65),0)+IFERROR((J51*J59*'Ibilgailuaren Ezaugarriak'!J25/J67),0)+IFERROR((J53*J61*'Ibilgailuaren Ezaugarriak'!J25/J69),0),0) -> 0 | L71: =IF(HLOOKUP('Ibilgailu-mota'!$E$10,DE!$D$1:$AI$281,102,0)="","",HLOOKUP('Ibilgailu-mota'!$E$10,DE!$D$1:$AI$281,102,0)) -> 8558
C73: Mantentze-gastuak | L73: Datu estadistikoak | M73: =DE!$AJ$2 -> 20/06/2025
C75: Mantentze-kostua kilometroko, BEZ gabe (€/km) | L75: =IF(HLOOKUP('Ibilgailu-mota'!$E$10,DE!$D$1:$AI$281,103,0)="","",HLOOKUP('Ibilgailu-mota'!$E$10,DE!$D$1:$AI$281,103,0)) -> 0.0182
C77: URTEAN MANTENTZEAN GASTATUTAKOA, BEZ GABE (€) | J77: ='Ibilgailuaren Ezaugarriak'!J25*J75 -> 0 | L77: =IF(HLOOKUP('Ibilgailu-mota'!$E$10,DE!$D$1:$AI$281,104,0)="","",HLOOKUP('Ibilgailu-mota'!$E$10,DE!$D$1:$AI$281,104,0)) -> 2730
C79: Konponketak | L79: Datu estadistikoak | M79: =DE!$AJ$2 -> 20/06/2025
C81: Konponketen kostua kilometroko, BEZ gabe (€/km) | L81: =IF(HLOOKUP('Ibilgailu-mota'!$E$10,DE!$D$1:$AI$281,105,0)="","",HLOOKUP('Ibilgailu-mota'!$E$10,DE!$D$1:$AI$281,105,0)) -> 0.0358
C83: URTEAN KONPONKETETAN GASTATUTAKOA, BEZ GABE (€) | J83: ='Ibilgailuaren Ezaugarriak'!J25*J81 -> 0 | L83: =IF(HLOOKUP('Ibilgailu-mota'!$E$10,DE!$D$1:$AI$281,106,0)="","",HLOOKUP('Ibilgailu-mota'!$E$10,DE!$D$1:$AI$281,106,0)) -> 5370
C85: Bidesariak | L85: Datu estadistikoak | M85: =DE!$AJ$2 -> 20/06/2025
C87: URTEAN BIDESARITAN GASTATUTAKOA, BEZ GABE (€) | L87: =IF(HLOOKUP('Ibilgailu-mota'!$E$10,DE!$D$1:$AI$281,107,0)="","",HLOOKUP('Ibilgailu-mota'!$E$10,DE!$D$1:$AI$281,107,0)) -> 18260.02
C89: KOSTU ALDAKORRAK | J89: =ROUND(J19+J37+J71+J77+J83+J87+J41,1) -> 0 | L89: =IF(HLOOKUP('Ibilgailu-mota'!$E$10,DE!$D$1:$AI$281,108,0)="","",HLOOKUP('Ibilgailu-mota'!$E$10,DE!$D$1:$AI$281,108,0)) -> 124505

Sheet Zeharkako kostuak
C6: 6. Zeharkako kostuak
C9: Zeharkako kostuak | J9: Datu estadistikoak | K9: =DE!$AJ$2 -> 20/06/2025
C11: % Urteko kudeaketa-, administrazio- eta merkaturatze-kostuak, ibilgailu honi dagozkionak | I11: % | J11: =ROUND(('Erosketa kostuak'!H105+'Pertsonal-kostuak'!H23+'Aseguruak eta zerga arloko kost'!H49+'Kostu aldakorrak'!J89)*('Zeharkako kostuak '!H11/100),0) -> 0 | K11: =IF(HLOOKUP(CONCATENATE('Ibilgailu-mota'!$E$10,"A"),DE!$D$1:$AI$281,109,0)="","",HLOOKUP(CONCATENATE('Ibilgailu-mota'!$E$10,"A"),DE!$D$1:$AI$281,109,0)) -> 6.5 | L11: =IF(HLOOKUP('Ibilgailu-mota'!$E$10,DE!$D$1:$AI$281,109,0)="","",HLOOKUP('Ibilgailu-mota'!$E$10,DE!$D$1:$AI$281,109,0)) -> 14723
C15: ZEHARKAKO GASTUAK | H15: =J11 -> 0 | J15: =IF(HLOOKUP('Ibilgailu-mota'!$E$10,DE!$D$1:$AI$281,112,0)="","",HLOOKUP('Ibilgailu-mota'!$E$10,DE!$D$1:$AI$281,112,0)) -> 14723

Sheet Emaitzak
C6: Emaitzak
C9: URTEKO KOSTUEN EMAITZAK | E9: Erabiltzailea | H9: Datu estadistikoak | I9: =DE!$AJ$2 -> 20/06/2025
E10: Euro | F10: % | H10: Euro | I10: %
C11: GUZTIZKO KOSTUAK | E11: =ROUND(E12+E21,0) -> 0 | F11: 100 | H11: =ROUND(H12+H21,0) -> 226514 | I11: 100
C12: KOSTUAK DENBORAREN ARABERA | E12: =ROUND(IFERROR(SUM(E13:E20),0),0) -> 0 | F12: =IFERROR(E12*F11/E11,0) -> 0 | H12: =ROUND(IFERROR(SUM(H13:H20),0),0) -> 102009 | I12: =IFERROR(H12*I11/H11,0) -> 45.03430252
C13: Leasinga | D13: A | E13: =ROUND(IFERROR('Erosketa kostuak'!H13+0,0)+IFERROR('Erosketa kostuak'!H37+0,0)+IFERROR('Erosketa kostuak'!H61+0,0)+IFERROR('Erosketa kostuak'!H85+0,0),0) -> 0 | F13: =IFERROR(E13*F$11/E$11,0) -> 0 | G13: A | H13: =ROUND(IFERROR('Erosketa kostuak'!J13+0,0)+IFERROR('Erosketa kostuak'!J37+0,0)+IFERROR('Erosketa kostuak'!J61+0,0)+IFERROR('Erosketa kostuak'!J85+0,0),0) -> 0 | I13: =IFERROR(H13*I$11/H$11,0) -> 0 | K13: A | L13: =E13 -> 0 | M13: 0 | N13: A | O13: =H13 -> 0 | P13: 0
C14: Amortizazioa | D14: B | E14: =ROUND(IFERROR(0+'Erosketa kostuak'!H29,0)+IFERROR(0+'Erosketa kostuak'!H53,0)+IFERROR(0+'Erosketa kostuak'!H77,0)+IFERROR(0+'Erosketa kostuak'!H101,0),0) -> 0 | F14: 0 | G14: B | H14: =ROUND(IFERROR(0+'Erosketa kostuak'!J29,0)+IFERROR(0+'Erosketa kostuak'!J53,0)+IFERROR(0+'Erosketa kostuak'!J77,0)+IFERROR(0+'Erosketa kostuak'!J101,0),0) -> 21756 | I14: 9.604704345 | K14: B | L14: 0 | M14: 0 | N14: B | O14: 21756 | P14: 9.604704345
C15: Finantza-gastuak | D15: C | E15: =ROUND(IFERROR(0+'Erosketa kostuak'!H31,0)+IFERROR(0+'Erosketa kostuak'!H55,0)+IFERROR(0+'Erosketa kostuak'!H79,0)+IFERROR(0+'Erosketa kostuak'!H103,0),0) -> 0 | F15: 0 | G15: C | H15: =ROUND(IFERROR(0+'Erosketa kostuak'!J31,0)+IFERROR(0+'Erosketa kostuak'!J55,0)+IFERROR(0+'Erosketa kostuak'!J79,0)+IFERROR(0+'Erosketa kostuak'!J103,0),0) -> 4058 | I15: 1.791500746 | K15: C | L15: 0 | M15: 0 | N15: C | O15: 4058 | P15: 1.791500746
C16: Gidariaren urteko kostua guztira | D16: D | E16: =ROUND('Pertsonal-kostuak'!H11,0) -> 0 | F16: 0 | G16: D | H16: =ROUND('Pertsonal-kostuak'!J11,0) -> 37650 | I16: 16.62148918 | K16: D | L16: 0 | M16: 0 | N16: D | O16: 37650 | P16: 16.62148918
C17: Dietak guztira eta jarduera-plusa | D17: E | E17: =ROUND('Pertsonal-kostuak'!H17+'Pertsonal-kostuak'!H21,0) -> 0 | F17: 0 | G17: E | H17: =ROUND('Pertsonal-kostuak'!J17+'Pertsonal-kostuak'!J21,0) -> 30650 | I17: 13.53117247 | K17: E | L17: 0 | M17: 0 | N17: E | O17: 30650 | P17: 13.53117247
C18: Seguruak | D18: F | E18: =ROUND('Aseguruak eta zerga arloko kost'!H27,0) -> 0 | F18: 0 | G18: F | H18: =ROUND('Aseguruak eta zerga arloko kost'!J27,0) -> 6965 | I18: 3.07486513 | K18: F | L18: 0 | M18: 0 | N18: F | O18: 6965 | P18: 3.07486513
C19: Zerga-arloko kostuak | D19: G | E19: =ROUND('Aseguruak eta zerga arloko kost'!H47,0) -> 0 | F19: 0 | G19: G | H19: =ROUND('Aseguruak eta zerga arloko kost'!J47,0) -> 930 | I19: 0.4105706491 | K19: G | L19: 0 | M19: 0 | N19: G | O19: 930 | P19: 0.4105706491
C20: Kudeaketa eta merkaturatzea | D20: H | E20: =ROUND('Zeharkako kostuak '!H15,0) -> 0 | F20: 0 | G20: H | H20: =ROUND('Zeharkako kostuak '!J11,0) -> 0 | I20: 0 | K20: H | L20: 0 | M20: 0 | N20: H | O20: 0 | P20: 0
C21: KOSTUAK IBILBIDEAREN ARABERA | E21: =ROUND(IFERROR(SUM(E22:E25),0),0) -> 0 | F21: =IFERROR(E21*F20/E20,0) -> 0 | H21: =ROUND(IFERROR(SUM(H22:H25),0),0) -> 124505 | I21: =IFERROR(H21*I20/H20,0) -> 0 | K21: I | L21: =E22 -> 0 | M21: 0 | N21: I | O21: =H22 -> 89587 | P21: 39.55031477
C22: Erregaia | D22: I | E22: =ROUND('Kostu aldakorrak'!J19+'Kostu aldakorrak'!J41+'Kostu aldakorrak'!J37,0) -> 0 | F22: =IFERROR(E22*F$11/E$11,0) -> 0 | G22: I | H22: =ROUND('Kostu aldakorrak'!L19+'Kostu aldakorrak'!L41+IF('Kostu aldakorrak'!L37<>"",'Kostu aldakorrak'!L37,0),0) -> 89587 | I22: =IFERROR(H22*I$11/H$11,0) -> 39.55031477 | K22: J | L22: 0 | M22: 0 | N22: J | O22: 8558 | P22: 3.778132919
C23: Pneumatikoak | D23: J | E23: =ROUND('Kostu aldakorrak'!J71,0) -> 0 | F23: =IFERROR(E23*F$11/E$11,0) -> 0 | G23: J | H23: =ROUND('Kostu aldakorrak'!L71,0) -> 8558 | I23: =IFERROR(H23*I$11/H$11,0) -> 3.778132919 | K23: K | L23: 0 | M23: 0 | N23: K | O23: 8100 | P23: 3.575937911
C24: Mantentzea eta konponketak | D24: K | E24: =ROUND('Kostu aldakorrak'!J77+'Kostu aldakorrak'!J83,0) -> 0 | F24: =IFERROR(E24*F$11/E$11,0) -> 0 | G24: K | H24: =ROUND('Kostu aldakorrak'!L77+'Kostu aldakorrak'!L83,0) -> 8100 | I24: =IFERROR(H24*I$11/H$11,0) -> 3.575937911 | K24: L | L24: 0 | M24: 0 | N24: L | O24: 18260 | P24: 8.061311884
C25: Bidesariak | D25: L | E25: =ROUND('Kostu aldakorrak'!J87,0) -> 0 | F25: =IFERROR(E25*F$11/E$11,0) -> 0 | G25: L | H25: =ROUND('Kostu aldakorrak'!L87,0) -> 18260 | I25: =IFERROR(H25*I$11/H$11,0) -> 8.061311884
C41: URTEKO KOSTUEN EGITURA | E41: Erabiltzailea | H41: Datu estadistikoak (2023/01)
E42: Euro | F42: % | H42: Euro | I42: %
C43: Amortizazioa eta finantza-gastuak eta leasinga | D43: A | E43: =ROUND(E13+E14+E15,0) -> 0 | F43: =IFERROR(E43*$F$48/$E$48,0) -> 0 | G43: A | H43: =ROUND(H13+H14+H15,0) -> 25814 | I43: =IFERROR(H43*$I$48/$H$48,0) -> 11.39620509
C44: Langileak | D44: B | E44: =ROUND(E16+E17,0) -> 0 | F44: =IFERROR(E44*$F$48/$E$48,0) -> 0 | G44: B | H44: =ROUND(H16+H17,0) -> 68300 | I44: =IFERROR(H44*$I$48/$H$48,0) -> 30.15266165
C45: Aseguruak, zerga-arloko kostuak, kudeaketa eta merkaturatzea | D45: C | E45: =ROUND(E18+E19+E20,0) -> 0 | F45: =IFERROR(E45*$F$48/$E$48,0) -> 0 | G45: C | H45: =ROUND(H18+H19+H20,0) -> 7895 | I45: =IFERROR(H45*$I$48/$H$48,0) -> 3.485435779
C46: Erregaia, pneumatikoak, konponketak, mantentzea eta bidesariak | D46: D | E46: =ROUND(E22+E23+E24+E25,0) -> 0 | F46: =IFERROR(E46*$F$48/$E$48,0) -> 0 | G46: D | H46: =ROUND(H22+H23+H24+H25,0) -> 124505 | I46: =IFERROR(H46*$I$48/$H$48,0) -> 54.96569748
C48: GUZTIZKO KOSTUAK | E48: =ROUND(SUM(E43:E46),0) -> 0 | F48: 100 | H48: =ROUND(SUM(H43:H46),0) -> 226514 | I48: 100
C68: KOSTUAK DENBORAREN ARABERA- KOSTUAK IBILBIDEAREN ARABERA | E68: Erabiltzailea | H68: Datu estadistikoak (2023/01)
E70: Euro | F70: % | H70: Euro | I70: %
C72: Kostuak denboraren arabera | D72: A | E72: =ROUND(E12,0) -> 0 | F72: =IFERROR(E72*$F$48/$E$48,0) -> 0 | G72: A | H72: =ROUND(H12,0) -> 102009 | I72: =IFERROR(H72*$I$48/$H$48,0) -> 45.03430252
C73: Kostuak ibilbidearen arabera | D73: B | E73: =ROUND(E21,0) -> 0 | F73: =IFERROR(E73*$F$48/$E$48,0) -> 0 | G73: B | H73: =ROUND(H21,0) -> 124505 | I73: =IFERROR(H73*$I$48/$H$48,0) -> 54.96569748
C75: GUZTIZKO KOSTUAK | E75: =ROUND(SUM(E72:E73),0) -> 0 | F75: 100 | H75: =ROUND(SUM(H72:H73),0) -> 226514 | I75: 100
C91: BATEZ BESTEKO KOSTUAK | E91: Erabiltzailea | H91: Datu estadistikoak (2023/01)
C93: Batez besteko kostua guztira (km-ko) | E93: =IFERROR(E75/'Ibilgailuaren Ezaugarriak'!J25,0) -> 0 | H93: =IFERROR(H75/'Ibilgailuaren Ezaugarriak'!L25,0) -> 1.510093333
C94: Batez besteko kostua guztira (orduko) | E94: =IFERROR(E75/'Ibilgailuaren Ezaugarriak'!J33,0) -> 0 | H94: =IFERROR(H75/'Ibilgailuaren Ezaugarriak'!L33,0) -> 113.257
C95: Batez besteko kostua ibilbidearen arabera (km-ko) | E95: =IFERROR(E73/'Ibilgailuaren Ezaugarriak'!J25,0) -> 0 | H95: =IFERROR(H73/'Ibilgailuaren Ezaugarriak'!L25,0) -> 0.8300333333
C96: Batez besteko kostua denboraren arabera (orduko) | E96: =IFERROR(E72/'Ibilgailuaren Ezaugarriak'!J33,0) -> 0 | H96: =IFERROR(H72/'Ibilgailuaren Ezaugarriak'!L33,0) -> 51.0045
C97: Pneumatiko, mantentze eta konponketen batez besteko kostua (km-ko) | E97: =IFERROR((E23+E24)/'Ibilgailuaren Ezaugarriak'!J25,0) -> 0 | H97: =IFERROR((H23+H24)/'Ibilgailuaren Ezaugarriak'!L25,0) -> 0.1110533333

Sheet Zerbitzuaren kostua
C6: Zerbitzuaren kostua
C9: Zerbitzuaren kostua
C11: Zerbitzuaren izena
C13: Zerbitzu honetan egindako kilometroak (zamarekin hutsik) (km) | H13: =H15+H17 -> 0
C15: Kilometroak zamarekin (km)
C17: Kilometroak hutsik (km)
C19: Zerbitzu honetako batez besteko kontsumoa kilometroko (litro / 100 km)
C21: Zerbitzu honetan emandako orduak | H21: =H23+H25+H27 -> 0
C23: Orduak zamarekin
C25: Orduak hutsik
H26: 6
C27: Zamaketa-lanetan eta geldirik emandako orduak
C29: Bidesariak
C31: Zerbitzu honen kostua ibilbidearen arabera (€) | H31: =IFERROR(ROUND(H13*(H19/100)*'Kostu aldakorrak'!J17+H13*(('Kostu aldakorrak'!J71+'Kostu aldakorrak'!J77+'Kostu aldakorrak'!J83)/'Ibilgailuaren Ezaugarriak'!J25)+H29,2),0) -> 0
C33: Zerbitzu honen kostua denboraren arabera (€) | H33: =IFERROR(H21*(('Erosketa kostuak'!H105+'Pertsonal-kostuak'!H23+'Aseguruak eta zerga arloko kost'!H49+'Zeharkako kostuak '!H15)/'Ibilgailuaren Ezaugarriak'!J33),0) -> 0
C35: Zerbitzu honi atxikitako kostu gehigarriak (€)
C37: Zerbitzu honen guztizko kostua (€) | H37: =IFERROR(H31+H33+H35,0) -> 0
